{"text_format":"1","workbook":"xlsx","n_sheets":5,"sheets":["Eligible AFDC Station IDs","Overview","Budget","Team Information","Project Template"],"not_rendered":{"charts":0,"images":2,"macros":1,"external_links":0,"defined_names":13,"comments":0,"pivot_tables":0},"unopened":[],"bounds":{"document_bytes":16777216,"sheet_cells":100000,"rows_first":2000,"rows_last":500,"rows_between":2000,"halvings":0,"cell_chars":16384,"cell_head_chars":4096},"cells_cut":0,"cells_raw":0,"read":"whole","date_system":"1900"}

{"sheet":"Eligible AFDC Station IDs","index":0,"n_rows":175,"n_cols":15,"rows_kept":175,"cut":false,"hidden":false,"merged":[]}
["ID","EV Network","Station Name","Address","City","State","ZIP","Phone","Lat","Lon","DAC Score","TMPU Ports Total","TMPU Ports L1","TMPU Ports L2","TMPU Ports DC"]
[49698,"ChargePoint","PARKWAY 12 & FILBERT 2","1201 Filbert St","Philadelphia","PA",19107,"888-758-4389",39.953071000000001,-75.160030000000006,5,1,0,1,0]
[50400,"ChargePoint","SECOND & STATE 2ND & STATE","409-477 N 2nd St","Harrisburg","PA",17101,"888-758-4389",40.262951000000001,-76.886619999999994,4,1,0,1,0]
[68766,"ChargePoint","PARKWAY 8TH & WALNUT","804 Walnut St","Philadelphia","PA",19107,"888-758-4389",39.948033000000002,-75.154624999999996,4,2,0,2,0]
[75608,"Non-Networked","Bryner Chevrolet","1750 The Fairway","Jenkintown","PA",19046,"215-886-3140",40.105553999999998,-75.121919000000005,0,2,0,2,0]
[85668,"ChargePoint","KOCH 33 TOYOTA SOUTH STATION","3816 Hecktown Rd","Easton","PA",18045,"888-758-4389",40.701828999999996,-75.288488000000001,0,2,0,2,0]
[85684,"Non-Networked","Gold 1 Garage","792 W General Robinson St","Pittsburgh","PA",15212,"412-323-4455",40.447848,-80.012879999999996,0,2,0,0,2]
[102965,"ChargePoint","SARTOMERAMERICA SARTOMER #1","502 Thomas Jones Way","Exton","PA",19341,"888-758-4389",40.021196000000003,-75.654539,0,2,0,2,0]
[103634,"ChargePoint","EAST MARKET 1100MARKET3","1100 Market St","Philadelphia","PA",19107,"888-758-4389",39.951352,-75.159563000000006,5,2,0,2,0]
[104199,"ChargePoint","ADDISON @ EVA THE ADDISON","700 Lower State Rd","North Wales","PA",19454,"888-758-4389",40.210647000000002,-75.219064000000003,0,2,0,2,0]
[117236,"Non-Networked","Roost Deli and Market","3251 US-209","Bushkill","PA",18324,"570-588-7062",41.103469699999998,-75.039678600000002,0,2,0,2,0]
[123428,"Blink","C&F Management Enterprises LLC c/o CBRE","680 Anderson Drive","Pittsburgh","PA",15220,"888-998-2546",40.421157000000001,-80.061190999999994,0,1,0,1,0]
[143238,"ChargePoint","TOWNSHIP O'HARA COMMUNITY PARK","330 Fox Chapel Rd","Pittsburgh","PA",15238,"888-758-4389",40.497157999999999,-79.882059999999996,0,2,0,2,0]
[143911,"Blink","JADEC","5000 Renaissance Drive","New Freedom","PA",17349,"888-998-2546",39.770081990000001,-76.656422989999996,0,2,0,2,0]
[144004,"ChargePoint","STONE HILL STONE HILL","532 Brookhaven Rd","Brookhaven","PA",19015,"888-758-4389",39.865506000000003,-75.395987000000005,0,2,0,2,0]
[147173,"Blink","Island View Crossing","1414 Radcliffe St","Bristol","PA",19007,"888-998-2546",40.103268,-74.841184999999996,0,2,0,2,0]
[147630,"ChargePoint","FOUNDRY41 FOUNDRY41","4107 Willow St","Pittsburgh","PA",15201,"888-758-4389",40.472209999999997,-79.964340000000007,0,2,0,2,0]
[148077,"Blink","Schenley Place","4420 Bayard Street","Pittsburgh","PA",15213,"800-663-5633",40.4474722,-79.953588100000005,4,2,0,2,0]
[148172,"Blink","Ambler Yards","300 Brookside Avenue\nBldg 4","Ambler","PA",19002,"800-663-5633",40.160943699999997,-75.232436300000003,0,1,0,1,0]
[149540,"ChargePoint","MURDOCH MURDOCH","3420 Iroquois Way","Pittsburgh","PA",15213,"888-758-4389",40.43862,-79.960080000000005,3,2,0,2,0]
[150288,"Blink","St. Lukes Hospital - Anderson Campus","1872 St. Luke's Blvd","Easton","PA",18045,"888-998-2546",40.649254999999997,-75.288250000000005,0,1,0,1,0]
[150469,"ChargePoint","GRV CHARGER #1 GRV 1","210 Green Ridge Ln","Newville","PA",17241,"888-758-4389",40.162004000000003,-77.401178000000002,0,2,0,2,0]
[152046,"ChargePoint","BORO OF OXFORD 2ND FLOOR","31 S 2nd St","Oxford","PA",19363,"888-758-4389",39.785249,-75.980018999999999,3,2,0,2,0]
[152047,"ChargePoint","BORO OF OXFORD 1ST FLR STATION","1 OCTORARO ALLEY","Oxford","PA",19363,"888-758-4389",39.785195999999999,-75.980070999999995,3,1,0,1,0]
[152526,"ChargePoint","HGI NS HGINS CHARGER","3743 West Chester Pike","Newtown Square","PA",19073,"888-758-4389",39.987845999999998,-75.405091999999996,0,2,0,2,0]
[152541,"Shell Recharge","Faros Properties","100 S Commons","Pittsburgh","PA",15212,"855-900-7584",40.451331000000003,-80.004683,3,3,0,3,0]
[152549,"ChargePoint","CYEB  HOTEL STATION 1","30 Sassafras Pier","Erie","PA",16507,"888-758-4389",42.134864999999998,-80.094170000000005,4,2,0,2,0]
[153154,"ChargePoint","USCIENCESGOODMN U SCIENCE 1","770 S 42nd St","Philadelphia","PA",19104,"888-758-4389",39.945174999999999,-75.205800999999994,0,2,0,2,0]
[153155,"ChargePoint","USCIENCESGOODMN U SCIENCE 2","750 S. 42nd St.","Philadelphia","PA",19104,"888-758-4389",39.945650000000001,-75.206303000000005,0,2,0,2,0]
[154414,"ChargePoint","PHCA PHCA-C-SW-2","666 W Germantown Pike","Plymouth Meeting","PA",19462,"888-758-4389",40.120944999999999,-75.285449999999997,0,2,0,2,0]
[154553,"Blink","Reserve at Harpers Crossing","100 Harper's Crossing","Langhorne","PA",19047,"888-998-2546",40.193534,-74.883050999999995,0,1,0,1,0]
[163832,"ChargePoint","1ST CAPITAL HD DCFAST HOG","190 Arsenal Rd","York","PA",17404,"888-758-4389",39.982909999999997,-76.732833999999997,3,1,0,0,1]
[164196,"Blink","New Stanton Service Plaza (Milepost 77.6 WB)","734 New Stanton Service Plaza","Hunker","PA",15639,"888-998-2546",40.207321999999998,-79.566135000000003,0,1,0,1,0]
[164263,"Blink","Edgewater Apartments","2323 Race Street","Philadelphia","PA",19103,"800-663-5633",39.958623299999999,-75.178107600000004,0,2,0,2,0]
[164534,"ChargePoint","SUEZ STATION 1","4636 Somerton Road","Trevose","PA",19053,"888-758-4389",40.129916999999999,-74.987309999999994,0,1,0,1,0]
[164770,"Blink","Harrisburg International Airport Cell Phone Parking Lot","1 Terminal Drive","Middletown","PA",17057,"888-998-2546",40.196711000000001,-76.761549000000002,0,1,0,0,1]
[164804,"ChargePoint","THE GOLF ZONE GOLF ZONE EV1","1839 Horseshoe Pike","Honey Brook","PA",19344,"888-758-4389",40.069836000000002,-75.826093,0,2,0,2,0]
[167460,"Blink","St Lukes University - Upper Bucks Campus","3000 St Lukes Drive","Quakertown","PA",18951,"888-998-2546",40.443762,-75.375923999999998,0,2,0,2,0]
[168078,"ChargePoint","MANAYUNK LOCK STREET 2","9 Lock St","Philadelphia","PA",19127,"888-758-4389",40.022889999999997,-75.220169999999996,0,2,0,2,0]
[168178,"ChargePoint","MANAYUNK GREEN LANE 2","114 Green Ln","Philadelphia","PA",19127,"888-758-4389",40.027315999999999,-75.227397999999994,0,2,0,2,0]
[169463,"Electrify America","Brixmor Village West (Allentown, PA)","3100 Tilghman St","Allentown","PA",18104,"833-632-2778",40.597639999999998,-75.526359999999997,0,1,0,0,1]
[171270,"Blink","Dunkin Donuts - Hawley","2527 US-6","Hawley","PA",18428,"888-998-2546",41.452497600000001,-75.179349999999999,0,1,0,1,0]
[171487,"Volta","Neshaminy Mall DCFC","707 Neshaminy Mall","Bensalem","PA",19020,"888-264-2208",40.138221000000001,-74.956140000000005,0,1,0,0,1]
[172204,"ChargePoint","GOOGLE PIT-BAK-4-01","6425 Penn Ave","Pittsburgh","PA",15206,"888-758-4389",40.457808,-79.916428999999994,5,1,0,1,0]
[173258,"ChargePoint","GEISINGER STATION05","100 N Academy Ave","Danville","PA",17821,"888-758-4389",40.968848999999999,-76.600956999999994,0,1,0,1,0]
[173259,"ChargePoint","GEISINGER STATION02","100 N Academy Ave","Danville","PA",17821,"888-758-4389",40.968893000000001,-76.600965000000002,0,1,0,1,0]
[173860,"ChargePoint","GWV STATION 02","Wyoming Valley Medical Center Heliport","Wilkes-Barre","PA",18702,"888-758-4389",41.257696000000003,-75.807578000000007,3,2,0,2,0]
[173861,"ChargePoint","GWV STATION 01","Wyoming Valley Medical Center Heliport","Wilkes-Barre","PA",18702,"888-758-4389",41.257460000000002,-75.808090000000007,3,2,0,2,0]
[173910,"ChargePoint","MCDONALDS YORK STATION 1","380 Memory Ln","East York","PA",17402,"888-758-4389",39.978178999999997,-76.682354000000004,3,2,0,2,0]
[174273,"ChargePoint","WSPT20VSP STATION 1","20 Valley Stream Pkwy","Malvern","PA",19355,"888-758-4389",40.057367999999997,-75.525921999999994,0,2,0,2,0]
[174875,"ChargePoint","EAST CAMPUS GAR STATION 3","5040 Forbes Ave","Pittsburgh","PA",15213,"888-758-4389",40.443877999999998,-79.940969999999993,0,2,0,2,0]
[174876,"ChargePoint","EAST CAMPUS GAR STATION 2","5040 Forbes Ave","Pittsburgh","PA",15213,"888-758-4389",40.443930000000002,-79.940959000000007,0,2,0,2,0]
[174882,"ChargePoint","ONEOXFORDCENTRE STATION 1","339 Cherry Way","Pittsburgh","PA",15219,"888-758-4389",40.437990999999997,-79.999081000000004,0,2,0,2,0]
[175089,"ChargePoint","3RD AND NORTH STATION 2","700 N 3rd St","Harrisburg","PA",17102,"888-758-4389",40.265343999999999,-76.885679999999994,4,1,0,1,0]
[175417,"ChargePoint","HIGH ASSOCIATES BLDG 339","5031 Richard Ln","Mechanicsburg","PA",17055,"888-758-4389",40.197344999999999,-76.963198000000006,0,2,0,2,0]
[180955,"ChargePoint","THE GOLF ZONE GOLF ZONE EV2","1839 Horseshoe Pike","Honey Brook","PA",19344,"888-758-4389",40.070402999999999,-75.826161999999997,0,2,0,2,0]
[181640,"ChargePoint","MANAYUNK LOCK STREET 1","9 Lock St","Philadelphia","PA",19127,"888-758-4389",40.022911999999998,-75.220189000000005,0,2,0,2,0]
[181672,"ChargePoint","MANAYUNK GREEN LANE 1","114 Green Ln","Philadelphia","PA",19127,"888-758-4389",40.027281000000002,-75.227425999999994,0,2,0,2,0]
[183174,"ChargePoint","UNIV PITTSBURGH MS STATION 1","7401 Mead St","Pittsburgh","PA",15208,"888-758-4389",40.448889999999999,-79.896180000000001,0,1,0,1,0]
[183701,"ChargePoint","BAKERY SQUARE 4-E","6487 Dahlem Pl.","Pittsburgh","PA",15206,"888-758-4389",40.456963000000002,-79.915300000000002,5,2,0,2,0]
[183705,"ChargePoint","BAKERY SQUARE 1-E","6487 Dahlem Pl.","Pittsburgh","PA",15206,"888-758-4389",40.457127,-79.915276000000006,5,2,0,2,0]
[183708,"ChargePoint","BAKERY SQUARE 1-A","6487 Dahlem Pl","Pittsburgh","PA",15206,"888-758-4389",40.457500000000003,-79.914985999999999,5,2,0,2,0]
[183710,"ChargePoint","BAKERY SQUARE 4-D","6487 Dahlem Pl.","Pittsburgh","PA",15206,"888-758-4389",40.456710000000001,-79.915000000000006,5,2,0,2,0]
[183844,"ChargePoint","CONOWINGO DAM MUDDY RUN LOWER","172 Bethesda Church Rd W","Holtwood","PA",17532,"888-758-4389",39.844732999999998,-76.284794000000005,3,2,0,2,0]
[185118,"ChargePoint","CIOCCA VW SHOP","1346 Lehigh St","Allentown","PA",18103,"888-758-4389",40.583210999999999,-75.477490000000003,4,1,0,1,0]
[188128,"Electrify America","Simon-Philadelphia Premium Outlets (Pottstown, PA)","18 W Lightcap Rd","Pottstown","PA",19464,"833-632-2778",40.23592,-75.57329,0,4,0,0,4]
[189782,"Blink","REEF Spring Garden Street","1320 Spring Garden Street","Philadelphia","PA",19123,"888-998-2546",39.961886,-75.160139000000001,0,3,0,3,0]
[190383,"Electrify America","PREIT Plymouth Meeting Mall (Plymouth Meeting, PA)","500 W Germantown Pik","Plymouth Meeting","PA",19642,"833-632-2778",40.116909999999997,-75.279290000000003,0,2,0,0,2]
[190692,"Blink","New St. Garage","324 S. New St.","Bethlehem","PA",18015,"888-998-2546",40.611294999999998,-75.378600000000006,4,2,0,2,0]
[191327,"Blink","Epic Metals Plant Parking Lot","11 Talbot Avenue","Rankin","PA",15104,"800-663-5633",40.408229970851004,-79.875165213491996,4,1,0,1,0]
[191641,"Blink","Audi Devon","222 W Lancaster Ave","Devon","PA",19333,"888-998-2546",40.044774799999999,-75.425241299999996,0,1,0,1,0]
[191737,"Blink","Hecktown Oaks Campus - North","3780 Hecktown Road","Easton","PA",18045,"888-998-2546",40.699078,-75.28295,0,1,0,1,0]
[192872,"ChargePoint","HIGH ASSOCIATES BUILDING 380 A","1740 Hempstead Rd","Lancaster","PA",17601,"888-758-4389",40.050865000000002,-76.252166000000003,0,2,0,2,0]
[192873,"ChargePoint","HIGH ASSOCIATES BUILDING 380 B","1740 Hempstead Rd","Lancaster","PA",17601,"888-758-4389",40.050980000000003,-76.252161999999998,0,2,0,2,0]
[192958,"Blink","Bowmansville Service Plaza (Milepost 289.9 EB)","1350 Reading Road","Denver","PA",17517,"888-998-2546",40.202286999999998,-76.015698999999998,3,1,0,1,0]
[193375,"Blink","Kia of Coatesville","2535 East Lincoln Hwy","Coatesville","PA",19320,"888-998-2546",39.991470499999998,-75.775058299999998,3,2,0,2,0]
[193487,"ChargePoint","LONG COMMUNITY1 HIGHLAND","329 Eden Rd","Lancaster","PA",17601,"888-758-4389",40.072374000000003,-76.297332999999995,0,2,0,2,0]
[195177,"Blink","Leg Up Farmers Market","3100 N. George ST","York","PA",17406,"800-663-5633",40.012739099999997,-76.731118300000006,3,2,0,2,0]
[195326,"Blink","King of Prussia Mall","160 N. Gulph Road","King of Prussia","PA",19406,"800-663-5633",40.0892616,-75.394773599999994,0,2,0,2,0]
[195441,"Blink","MOM\\'s of Rosemont","1149 E. Lancaster Ave","Bryn Mawr","PA",19010,"800-663-5633",40.025768900000003,-75.325529000000003,0,1,0,1,0]
[195584,"Blink","Garage","101 Bryce Lane","King of Prussia","PA",19406,"800-663-5633",40.082470000000001,-75.406611600000005,0,2,0,2,0]
[196556,"ChargePoint","CHESTNUT ST EV CHESTNUT GARAGE","14 E Chestnut St","West Chester","PA",19380,"888-758-4389",39.961787000000001,-75.604716999999994,0,1,0,1,0]
[201050,"Blink","South Port Plaza","1600 S Christopher Columbus Blvd","Philadelphia","PA",19148,"888-998-2546",39.927123000000002,-75.145539999999997,0,2,0,0,2]
[201447,"ChargePoint","STADIUM ROW STATION 1","190 W Ross St","Lancaster","PA",17603,"888-758-4389",40.049764000000003,-76.312574999999995,3,2,0,2,0]
[201480,"Blink","Janssen Biotech, Inc.","850 Ridgeview Drive","Horsham","PA",19044,"888-998-2546",40.198529999999998,-75.158159999999995,0,5,0,5,0]
[201804,"ChargePoint","AMERISOURCE LEVEL 10 #14","100 W Elm St","Conshohocken","PA",19428,"888-758-4389",40.073773000000003,-75.308700000000002,0,2,0,2,0]
[202654,"Blink","Temple University - Health Sciences Center","3412-28 N Carlisle St","Philadelphia","PA",19140,"888-998-2546",40.005164999999998,-75.153235899999999,5,1,0,1,0]
[202886,"Blink","Wynfield Apartments","1 Wynfield Boulevard","York","PA",17403,"800-663-5633",39.912725399999999,-76.712627800000007,0,1,0,1,0]
[202937,"Blink","Building 101","101 E County Line Road","Warminster","PA",18974,"888-998-2546",40.184643000000001,-75.092017999999996,4,1,0,1,0]
[204480,"Blink","Tate Access Floors - PA","52 Springvale Rd","Red Lion","PA",17356,"800-663-5633",39.889166000000003,-76.592344999999995,0,4,0,4,0]
[204705,"ChargePoint","MCDONALDS YORK STATION 2","380 Memory Ln","East York","PA",17402,"888-758-4389",39.978144999999998,-76.682342000000006,3,2,0,2,0]
[204912,"ChargePoint","BUCKINGHAM TWP BUCKINGHAM EV","4613 hughesian Drive","furlong","PA",18912,"888-758-4389",40.321564000000002,-75.060869999999994,0,2,0,2,0]
[205089,"Electrify America","Cedar Realty Quartermaster Plaza (Philadelphia, PA","2129 Oregon Ave","Philadelphia","PA",19145,"833-632-2778",39.918280000000003,-75.185969999999998,0,2,0,0,2]
[205673,"Electrify America","PREIT Willow Grove Park (Willow Grove, PA)","2500 W. Moreland Dr","Willow Grove","PA",19090,"833-632-2778",40.141590000000001,-75.122969999999995,0,3,0,0,3]
[205685,"Blink","The Quadrangle","3300 Darby Road","Haverford","PA",19041,"800-663-5633",39.999291200000002,-75.333456699999999,0,2,0,2,0]
[207435,"ChargePoint","LGT VETERANS PARK","1025 N Bethlehem Pike","Spring House","PA",19002,"888-758-4389",40.184589000000003,-75.228149000000002,0,2,0,2,0]
[207719,"Blink","Audi Allentown","4725 Hamilton Blvd","Allentown","PA",18103,"888-998-2546",40.569073000000003,-75.551473000000001,0,1,0,1,0]
[211779,"ChargePoint","AHN WEXFORD GARAGE LEVEL 2","12311 Perry Hwy","Wexford","PA",15090,"888-758-4389",40.635641,-80.063815000000005,0,2,0,2,0]
[211780,"ChargePoint","AHN WEXFORD GARAGE LEVEL 3","12311 Perry Hwy","Wexford","PA",15090,"888-758-4389",40.635624999999997,-80.063986,0,2,0,2,0]
[211781,"ChargePoint","AHN WEXFORD GARAGE LEVEL 4","12311 Perry Hwy","Wexford","PA",15090,"888-758-4389",40.635617000000003,-80.063975999999997,0,2,0,2,0]
[212611,"ChargePoint","ELM STREET ELM STATION #1","1 West Elm Street","Conshohocken","PA",19428,"888-758-4389",40.072830000000003,-75.307963999999998,0,2,0,2,0]
[212637,"EVgo","Wawa Wyncote","8250 Limekiln Pike","Wyncote","PA",19095,"877-455-3833",40.079414999999997,-75.160759999999996,0,1,0,0,1]
[213919,"Blink","Edge 1909","1909 Waterfront Place","Pittsburgh","PA",15222,"800-663-5633",40.4526459,-79.986144999999993,0,6,0,6,0]
[216429,"Blink","Riverfront Landing II (The District)","1759 Waterfront Place","Pittsburgh","PA",15222,"800-663-5633",40.451771999999998,-79.987532200000004,0,6,0,6,0]
[219876,"ChargePoint","F&M CHARGEPOINT F&M NORTH 1","931 Harrisburg Pike","Lancaster","PA",17603,"888-758-4389",40.051893,-76.321088000000003,3,1,0,1,0]
[221301,"ChargePoint","STEVE MOYER SUB SMS SERVICE 3","201 S Centre Ave","Leesport","PA",19533,"888-758-4389",40.447853000000002,-75.959829999999997,0,1,0,1,0]
[221302,"ChargePoint","STEVE MOYER SUB SMS SERVICE 4","201 S Centre Ave","Leesport","PA",19533,"888-758-4389",40.447884000000002,-75.959885,0,1,0,1,0]
[221621,"ChargePoint","STEVE MOYER SUB SMS SALES 1","201 S Centre Ave","Leesport","PA",19533,"888-758-4389",40.447372000000001,-75.95966,0,1,0,1,0]
[221622,"ChargePoint","STEVE MOYER SUB SMS SALES 2","201 S Centre Ave","Leesport","PA",19533,"888-758-4389",40.447257999999998,-75.959779999999995,0,1,0,1,0]
[221911,"ChargePoint","STEVE MOYER SUB SMS INSIDE BAY","201 S Centre Ave","Leesport","PA",19533,"888-758-4389",40.447629999999997,-75.959723999999994,0,1,0,1,0]
[222176,"Blink","480 Swedesford Associates Rd Building","480 Swedesford Road","Wayne","PA",19087,"888-998-2546",40.075825999999999,-75.421280999999993,0,1,0,1,0]
[224756,"Shell Recharge","2050 W Main St","2050 W Main St","Mt Joy","PA",17552,"855-900-7584",40.130651,-76.563159999999996,0,1,0,1,0]
[224757,"Shell Recharge","2622 Lincoln Hwy","2622 Lincoln Hwy","Ronks","PA",17572,"855-900-7584",40.020001999999998,-76.181712000000005,3,1,0,1,0]
[225176,"ChargePoint","CAMLIN HYUNDAI CPE250-2","5162 US-30","Greensburg","PA",15601,"888-758-4389",40.302019000000001,-79.500005000000002,0,1,0,0,1]
[225285,"Blink","Center City","34 South 11th Street","Philadelphia","PA",19107,"800-663-5633",39.950890800000003,-75.1587593,5,2,0,2,0]
[226800,"ChargePoint","CORK FACTORY CORK 2","2350 Railroad St","Pittsburgh","PA",15222,"888-758-4389",40.454169999999998,-79.982543000000007,0,1,0,1,0]
[227226,"ChargePoint","FAULKNER SUBARU SALES DUAL 1","6629 Carlisle Pike","Mechanicsburg","PA",17050,"888-758-4389",40.242238999999998,-77.040367000000003,0,1,0,1,0]
[227234,"ChargePoint","FAULKNER SUBARU SALES DUAL 2","6629 Carlisle Pike","Mechanicsburg","PA",17050,"888-758-4389",40.242370999999999,-77.040705000000003,0,1,0,1,0]
[227235,"ChargePoint","FAULKNER SUBARU SVC OUTDOOR","6629 Carlisle Pike","Mechanicsburg","PA",17050,"888-758-4389",40.242133000000003,-77.040569000000005,0,1,0,1,0]
[227331,"Blink","PTC Garage","401 Technology Drive","Pittsburgh","PA",15219,"888-998-2546",40.432277800000001,-79.963109799999998,0,1,0,1,0]
[227357,"ChargePoint","DESALES DOOLING 2","2755 Station Avenue Dooling Hall","Center Valley","PA",18034,"888-758-4389",40.538283,-75.376767999999998,0,2,0,2,0]
[227987,"EVgo","Philadelphia Mills","1455 Franklin Mills Cir","Philadelphia","PA",19154,"877-455-3833",40.085585000000002,-74.961422999999996,0,2,0,1,1]
[228061,"EVgo","Dunkin' Donuts","800 W View Park Dr","Pittsburgh","PA",15229,"877-455-3833",40.518064000000003,-80.031647000000007,0,1,0,0,1]
[228062,"EVgo","Dunkin' Donuts","6524 State Route 30","Jeannette","PA",15644,"877-455-3833",40.310333999999997,-79.619652000000002,3,1,0,0,1]
[228064,"EVgo","Dunkin' Donuts","2658 Brodhead Rd","Aliquippa","PA",15001,"877-455-3833",40.604581000000003,-80.280225999999999,3,1,0,0,1]
[228065,"EVgo","Dunkin' Donuts","40 Foster Ave","Crafton","PA",15205,"877-455-3833",40.44012,-80.069286000000005,0,1,0,0,1]
[228631,"EVgo","Target Pittsburgh","6231 Penn Ave","Pittsburgh","PA",15206,"877-455-3833",40.460439999999998,-79.919929999999994,4,1,0,0,1]
[228650,"EVgo","Sheetz Moon Township #379","9002 University Blvd","Moon Township","PA",15108,"877-455-3833",40.503262300000003,-80.223025199999995,0,1,0,0,1]
[228659,"EVgo","McCandless Crossing","9150 Covenant Ave","Pittsburgh","PA",15237,"877-455-3833",40.570993999999999,-80.022931999999997,0,1,0,0,1]
[228666,"EVgo","Quartermaster Plaza","2300 W Oregon Ave","Philadelphia","PA",19145,"877-455-3833",39.916321000000003,-75.187504000000004,0,1,0,0,1]
[228691,"EVgo","Wawa Philadelphia #8065","3995 Aramingo Ave","Philadelphia","PA",19137,"877-455-3833",39.997340000000001,-75.088350000000005,0,1,0,0,1]
[228907,"Blink","700 Chesterfield","700 Chesterfield Parkway","Malvern","PA",19355,"800-663-5633",40.057563899999998,-75.515568500000001,0,2,0,2,0]
[228908,"Blink","1001 Cedar Hollow","1001 Cedar Hollow Road","Malvern","PA",19355,"800-663-5633",40.056418800000003,-75.509653900000004,0,2,0,2,0]
[228909,"Blink","50/60 Morehall","50/60 Morehall Road","Malvern","PA",19355,"800-663-5633",40.047810800000001,-75.525895000000006,0,2,0,2,0]
[228910,"Blink","Neptune","1300 Brennan Boulevard","Malvern","PA",19355,"800-663-5633",40.046763800000001,-75.519129800000002,0,4,0,4,0]
[228911,"Blink","Leander","900 Vanguard Boulevard","Malvern","PA",19355,"800-663-5633",40.053105500000001,-75.495300400000005,0,2,0,2,0]
[228912,"Blink","RAD Center","1041 West Valley Road","Wayne","PA",19087,"800-663-5633",40.072307000000002,-75.424160999999998,0,2,0,2,0]
[229401,"ChargePoint","HIGH ASSOCIATES HIGH BLDG 72","1866 Colonial Village Ln","Lancaster","PA",17601,"888-758-4389",40.053668999999999,-76.235056999999998,0,2,0,2,0]
[229412,"ChargePoint","HIGH ASSOCIATES HIGH BLDG 24","1902 Olde Homestead Ln","Lancaster","PA",17601,"888-758-4389",40.051867000000001,-76.242932999999994,0,2,0,2,0]
[230998,"EV Connect","Admin Building","1998 West Harrisburg Pike","Middletown","PA",17057,"866-816-7584",40.199776,-76.765099000000006,0,1,0,1,0]
[231011,"EV Connect","East Mountain","680 Wildflower Drive","Wilkes-Barre","PA",18702,"866-816-7584",41.253262999999997,-75.814898999999997,3,2,0,2,0]
[231765,"EV Connect","Manor House","1415 Spencer Ave","Lancaster","PA",17603,"866-816-7584",40.026597000000002,-76.332530000000006,0,2,0,2,0]
[234669,"Blink","Sharpless Street Garage","15 Sharpless Street","West Chester","PA",19382,"800-663-5633",39.954522400000002,-75.601076199999994,0,2,0,2,0]
[238051,"Blink","Parx Casino (Team Members Only)","2999 Street Rd","Bensalem","PA",19020,"888-998-2546",40.118279999999999,-74.950845999999999,4,1,0,1,0]
[238887,"ChargePoint","MURRAY MOTORS MURRAY MOTORS","85 Griffith Rd","Muncy","PA",17756,"888-758-4389",41.213321999999998,-76.767717000000005,0,1,0,1,0]
[253923,"ChargePoint","UDR THE GEORGE W1","140 Valley Green Ln","King of Prussia","PA",19406,"888-758-4389",40.088284000000002,-75.411625000000001,0,2,0,2,0]
[254290,"EV Connect","2200 Renaissance Blvd","2200 Renaissance Blvd","King of Prussia","PA",19406,"866-816-7584",40.085419000000002,-75.337483000000006,0,2,0,2,0]
[255110,"Blink","Test location from su","1234 Market Street","Philadelphia","PA",19107,"800-663-5633",39.951795799999999,-75.161139800000001,5,1,0,1,0]
[256691,"ChargePoint","MORGAN PROP. STONEGATE","245 Avon Rd","Devon","PA",19333,"888-758-4389",40.044328,-75.411564999999996,0,1,0,1,0]
[257476,"Blink","Ed Shults of Warren","4025 Market St","Warren","PA",16365,"888-998-2546",41.89781,-79.149664000000001,3,1,0,1,0]
[261051,"ChargePoint","DOYLESTOWN 024B1000008033","4465 W Swamp Rd","Doylestown","PA",18902,"888-758-4389",40.333427,-75.136874000000006,0,1,0,0,1]
[261342,"ChargePoint","DSG DSG STATION # 3","345 Court St","Coraopolis","PA",15108,"888-758-4389",40.507699000000002,-80.265656000000007,0,1,0,1,0]
[261343,"ChargePoint","DSG DSG STATION # 2","345 Court St","Coraopolis","PA",15108,"888-758-4389",40.507711,-80.265669000000003,0,1,0,1,0]
[261619,"Blink","Hobbs and Co Warehouse","99 Aldan Avenue","Glen Mills","PA",19342,"800-663-5633",39.892032399999998,-75.5286744,0,1,0,1,0]
[262462,"ChargePoint","KEN POLLOCK ALF CP6000","290 Mundy St","Wilkes-Barre Township","PA",18702,"888-758-4389",41.244014,-75.841374999999999,0,1,0,1,0]
[296791,"Volta","Blue Mountain Commons","2300 Linglestown Road","Harrisburg","PA",17110,"888-264-2208",40.330934399999997,-76.862179423000001,0,1,0,1,0]
[307411,"ChargePoint","1766 LINCOLN STATION 13","1000 S Broad St","Philadelphia","PA",19146,"888-758-4389",39.938260999999997,-75.167276000000001,0,2,0,2,0]
[307425,"ChargePoint","STEVE MOYER SUB SMS SERVICE 1","201 S Centre Ave","Leesport","PA",19533,"888-758-4389",40.447544999999998,-75.959892999999994,0,1,0,1,0]
[307426,"ChargePoint","STEVE MOYER SUB SMS SERVICE 2","201 S Centre Ave","Leesport","PA",19533,"888-758-4389",40.447814999999999,-75.959688999999997,0,1,0,1,0]
[307766,"EV Connect","James E. Black Cadillac","3929 Admiral Peary Highway","EBENSBURG","PA",15931,"866-816-7584",40.457908000000003,-78.774618000000004,0,2,0,1,1]
[309036,"Blink","Building M","210 Orr Drive","Willow Street","PA",17584,"888-998-2546",39.951383499999999,-76.265290899999997,0,1,0,1,0]
[309238,"Blink","Bobby Rahal Acura","6694 Carlisle Pike","Mechanicsburg","PA",17050,"888-998-2546",40.241345000000003,-77.050147999999993,0,2,0,2,0]
[309524,"Blink","Eurofins Lancaster Laboratories Parking Garage","100 Market Square South","Leola","PA",17540,"888-998-2546",40.0823909,-76.216703499999994,3,3,0,3,0]
[309551,"Blink","Lankenau Parking Garage A","100 East Lancaster Avenue","Wynnewood","PA",19096,"888-998-2546",39.989294000000001,-75.260852999999997,0,1,0,1,0]
[309719,"Blink","50 At Granite Run","50 Middletown Road","Media","PA",19063,"888-998-2546",39.9176997,-75.426861799999998,0,3,0,3,0]
[309736,"Blink","1600 Callowhill Loft","1600 Callowhill St","Philadelphia","PA",19130,"888-998-2546",39.959785400000001,-75.165673999999996,0,2,0,2,0]
[309759,"Blink","King of Prussia Specialty Care Center - Level G Exterior","550 S. Goddard Blvd","King of Prussia","PA",19406,"888-998-2546",40.087102999999999,-75.407866999999996,0,1,0,1,0]
[309798,"Blink","Industry Drive","300 Industry Drive","Pittsburgh","PA",15275,"888-998-2546",40.469760100000002,-80.2136426,0,1,0,1,0]
[309914,"Blink","Underground Garage","205 Race Street","Philadelphia","PA",19106,"888-998-2546",39.9539294,-75.143226200000001,0,1,0,1,0]
[310189,"Blink","CVS Health","1425 Union Meeting Road","Blue Bell","PA",19422,"888-998-2546",40.148114800000002,-75.286376700000005,0,1,0,1,0]
[310329,"Blink","Key Ford of Hazelton","1112 North Church Street","Hazelton","PA",18202,"888-998-2546",40.978918,-75.980098999999996,4,1,0,1,0]
[311313,"ChargePoint","EMLENTON TRUCK EMLENTON PL1","6406 Emlenton Clintonville Road","Emlenton","PA",16373,"888-758-4389",41.175125000000001,-79.739258000000007,3,1,0,0,1]
[311314,"ChargePoint","EMLENTON TRUCK EMLENTON PL2","6406 Emlenton Clintonville Road","Emlenton","PA",16373,"888-758-4389",41.175141000000004,-79.739390999999998,3,1,0,0,1]
[311327,"ChargePoint","AAA MID STATES STATION 1","200 Shiloh Rd","State College","PA",16801,"888-758-4389",40.837600999999999,-77.801477000000006,0,2,0,2,0]
[312595,"OpConnect","The Buncher Company","1251 Waterfront Place","Pittsburgh","PA",15222,"855-885-9571",40.448059999999998,-79.992999999999995,0,3,0,3,0]

{"sheet":"Overview","index":1,"n_rows":236,"n_cols":8,"rows_kept":236,"cut":false,"hidden":false,"merged":[[3,0,6,0],[30,6,32,7],[3,10,3,12],[3,6,3,7],[2,1,2,2],[3,3,6,4],[7,6,11,7],[23,7,24,7],[20,7,21,7]]}
[]
[null,"PennDOT EVC-RAA Proposal Excel File"]
[null,"General Information"]
["Step 1","Organization Name",null,"* Click \"Enable Editing\" or \"Enable Content\" if a security warning pops up. If a red security warning pops up, close the file, right click and go to properties. There, check \"unlock\" to trust the file.",null,null,"General Notes"]
[null,"Organization Address",null,null,null,null,"* Only edit the yellow highlighted cells"]
[null,"Contact Name",null,null,null,null,"* Gray cells have formulas in them. Do not edit these"]
[null,"Contact Email"]
[null,null,null,null,null,null,"The majority of questions are answered within this spreadsheet. Remaining questions are to be completed within eGrants and are labeled as such along with the method to complete the questions (e.g., “File Upload”). See Appendix II-IV of PennDOT RAA Funding Opportunity for more information."]
["Step 2","Number of Projects",3]
[]
[null,null,"AFDC Station ID","Project Address","Total Budget"]
["Step 3",1,null,{"$f":"IF(NOT(ISBLANK(C12)), VLOOKUP(C12, 'Eligible AFDC Station IDs'!$A$1:$D$175, 4, FALSE), \"\")","v":""},{"$f":"IF(NOT(ISBLANK(C12)), VLOOKUP(C12, Budget!$B$9:$U$190, 20, FALSE), \"\")","v":""}]
[null,2,null,{"$f":"IF(NOT(ISBLANK(C13)), VLOOKUP(C13, 'Eligible AFDC Station IDs'!$A$1:$D$175, 4, FALSE), \"\")","v":""},{"$f":"IF(NOT(ISBLANK(C13)), VLOOKUP(C13, Budget!$B$9:$U$190, 20, FALSE), \"\")","v":""}]
[null,3,null,{"$f":"IF(NOT(ISBLANK(C14)), VLOOKUP(C14, 'Eligible AFDC Station IDs'!$A$1:$D$175, 4, FALSE), \"\")","v":""},{"$f":"IF(NOT(ISBLANK(C14)), VLOOKUP(C14, Budget!$B$9:$U$190, 20, FALSE), \"\")","v":""}]
[null,null,null,{"$f":"IF(NOT(ISBLANK(C15)), VLOOKUP(C15, 'Eligible AFDC Station IDs'!$A$1:$D$175, 4, FALSE), \"\")","v":""},{"$f":"IF(NOT(ISBLANK(C15)), VLOOKUP(C15, Budget!$B$9:$U$190, 20, FALSE), \"\")","v":""},null,"Step #","Instructions"]
[null,null,null,{"$f":"IF(NOT(ISBLANK(C16)), VLOOKUP(C16, 'Eligible AFDC Station IDs'!$A$1:$D$175, 4, FALSE), \"\")","v":""},{"$f":"IF(NOT(ISBLANK(C16)), VLOOKUP(C16, Budget!$B$9:$U$190, 20, FALSE), \"\")","v":""},null,1,"Begin by entering your general information in C4:C7"]
[null,null,null,{"$f":"IF(NOT(ISBLANK(C17)), VLOOKUP(C17, 'Eligible AFDC Station IDs'!$A$1:$D$175, 4, FALSE), \"\")","v":""},{"$f":"IF(NOT(ISBLANK(C17)), VLOOKUP(C17, Budget!$B$9:$U$190, 20, FALSE), \"\")","v":""},null,2,"Enter the number of Projects in C9"]
[null,null,null,{"$f":"IF(NOT(ISBLANK(C18)), VLOOKUP(C18, 'Eligible AFDC Station IDs'!$A$1:$D$175, 4, FALSE), \"\")","v":""},{"$f":"IF(NOT(ISBLANK(C18)), VLOOKUP(C18, Budget!$B$9:$U$190, 20, FALSE), \"\")","v":""},null,3,"Enter your Project IDs in C12 and downward"]
[null,null,null,{"$f":"IF(NOT(ISBLANK(C19)), VLOOKUP(C19, 'Eligible AFDC Station IDs'!$A$1:$D$175, 4, FALSE), \"\")","v":""},{"$f":"IF(NOT(ISBLANK(C19)), VLOOKUP(C19, Budget!$B$9:$U$190, 20, FALSE), \"\")","v":""},null,4,"Click the \"Create Project Tabs\" button"]
[null,null,null,{"$f":"IF(NOT(ISBLANK(C20)), VLOOKUP(C20, 'Eligible AFDC Station IDs'!$A$1:$D$175, 4, FALSE), \"\")","v":""},{"$f":"IF(NOT(ISBLANK(C20)), VLOOKUP(C20, Budget!$B$9:$U$190, 20, FALSE), \"\")","v":""},null,5,"Fill in the budget information for each Project in the tab \"Budget\""]
[null,null,null,{"$f":"IF(NOT(ISBLANK(C21)), VLOOKUP(C21, 'Eligible AFDC Station IDs'!$A$1:$D$175, 4, FALSE), \"\")","v":""},{"$f":"IF(NOT(ISBLANK(C21)), VLOOKUP(C21, Budget!$B$9:$U$190, 20, FALSE), \"\")","v":""},null,6,"Fill in the qualifications of all team members in the tab \"Team Information\" for all projects"]
[null,null,null,{"$f":"IF(NOT(ISBLANK(C22)), VLOOKUP(C22, 'Eligible AFDC Station IDs'!$A$1:$D$175, 4, FALSE), \"\")","v":""},{"$f":"IF(NOT(ISBLANK(C22)), VLOOKUP(C22, Budget!$B$9:$U$190, 20, FALSE), \"\")","v":""}]
[null,null,null,{"$f":"IF(NOT(ISBLANK(C23)), VLOOKUP(C23, 'Eligible AFDC Station IDs'!$A$1:$D$175, 4, FALSE), \"\")","v":""},{"$f":"IF(NOT(ISBLANK(C23)), VLOOKUP(C23, Budget!$B$9:$U$190, 20, FALSE), \"\")","v":""},null,7,"Fill in the rest of the information in each individual Project tab"]
[null,null,null,{"$f":"IF(NOT(ISBLANK(C24)), VLOOKUP(C24, 'Eligible AFDC Station IDs'!$A$1:$D$175, 4, FALSE), \"\")","v":""},{"$f":"IF(NOT(ISBLANK(C24)), VLOOKUP(C24, Budget!$B$9:$U$190, 20, FALSE), \"\")","v":""},null,8,"Once all has been completed, click the button \"Validate Completed Form\" to check that all data has been entered across all Projects"]
[null,null,null,{"$f":"IF(NOT(ISBLANK(C25)), VLOOKUP(C25, 'Eligible AFDC Station IDs'!$A$1:$D$175, 4, FALSE), \"\")","v":""},{"$f":"IF(NOT(ISBLANK(C25)), VLOOKUP(C25, Budget!$B$9:$U$190, 20, FALSE), \"\")","v":""}]
[null,null,null,{"$f":"IF(NOT(ISBLANK(C26)), VLOOKUP(C26, 'Eligible AFDC Station IDs'!$A$1:$D$175, 4, FALSE), \"\")","v":""},{"$f":"IF(NOT(ISBLANK(C26)), VLOOKUP(C26, Budget!$B$9:$U$190, 20, FALSE), \"\")","v":""}]
[null,null,null,{"$f":"IF(NOT(ISBLANK(C27)), VLOOKUP(C27, 'Eligible AFDC Station IDs'!$A$1:$D$175, 4, FALSE), \"\")","v":""},{"$f":"IF(NOT(ISBLANK(C27)), VLOOKUP(C27, Budget!$B$9:$U$190, 20, FALSE), \"\")","v":""},null,"See Appendix II for detailed proposal instructions"]
[null,null,null,{"$f":"IF(NOT(ISBLANK(C28)), VLOOKUP(C28, 'Eligible AFDC Station IDs'!$A$1:$D$175, 4, FALSE), \"\")","v":""},{"$f":"IF(NOT(ISBLANK(C28)), VLOOKUP(C28, Budget!$B$9:$U$190, 20, FALSE), \"\")","v":""},null,"See Appendix III for a complete list of the questions"]
[null,null,null,{"$f":"IF(NOT(ISBLANK(C29)), VLOOKUP(C29, 'Eligible AFDC Station IDs'!$A$1:$D$175, 4, FALSE), \"\")","v":""},{"$f":"IF(NOT(ISBLANK(C29)), VLOOKUP(C29, Budget!$B$9:$U$190, 20, FALSE), \"\")","v":""},null,"See Appendix IV for the scoring rubric"]
[null,null,null,{"$f":"IF(NOT(ISBLANK(C30)), VLOOKUP(C30, 'Eligible AFDC Station IDs'!$A$1:$D$175, 4, FALSE), \"\")","v":""},{"$f":"IF(NOT(ISBLANK(C30)), VLOOKUP(C30, Budget!$B$9:$U$190, 20, FALSE), \"\")","v":""}]
[null,null,null,{"$f":"IF(NOT(ISBLANK(C31)), VLOOKUP(C31, 'Eligible AFDC Station IDs'!$A$1:$D$175, 4, FALSE), \"\")","v":""},{"$f":"IF(NOT(ISBLANK(C31)), VLOOKUP(C31, Budget!$B$9:$U$190, 20, FALSE), \"\")","v":""},null,"*If you are unable to enable macros in Excel for this file, please first contact your IT department. If this does not work, contact ra-pdevcorridors@pa.gov for additional instructions."]
[null,null,null,{"$f":"IF(NOT(ISBLANK(C32)), VLOOKUP(C32, 'Eligible AFDC Station IDs'!$A$1:$D$175, 4, FALSE), \"\")","v":""},{"$f":"IF(NOT(ISBLANK(C32)), VLOOKUP(C32, Budget!$B$9:$U$190, 20, FALSE), \"\")","v":""}]
[null,null,null,{"$f":"IF(NOT(ISBLANK(C33)), VLOOKUP(C33, 'Eligible AFDC Station IDs'!$A$1:$D$175, 4, FALSE), \"\")","v":""},{"$f":"IF(NOT(ISBLANK(C33)), VLOOKUP(C33, Budget!$B$9:$U$190, 20, FALSE), \"\")","v":""}]
[null,null,null,{"$f":"IF(NOT(ISBLANK(C34)), VLOOKUP(C34, 'Eligible AFDC Station IDs'!$A$1:$D$175, 4, FALSE), \"\")","v":""},{"$f":"IF(NOT(ISBLANK(C34)), VLOOKUP(C34, Budget!$B$9:$U$190, 20, FALSE), \"\")","v":""}]
[null,null,null,{"$f":"IF(NOT(ISBLANK(C35)), VLOOKUP(C35, 'Eligible AFDC Station IDs'!$A$1:$D$175, 4, FALSE), \"\")","v":""},{"$f":"IF(NOT(ISBLANK(C35)), VLOOKUP(C35, Budget!$B$9:$U$190, 20, FALSE), \"\")","v":""}]
[null,null,null,{"$f":"IF(NOT(ISBLANK(C36)), VLOOKUP(C36, 'Eligible AFDC Station IDs'!$A$1:$D$175, 4, FALSE), \"\")","v":""},{"$f":"IF(NOT(ISBLANK(C36)), VLOOKUP(C36, Budget!$B$9:$U$190, 20, FALSE), \"\")","v":""}]
[null,null,null,{"$f":"IF(NOT(ISBLANK(C37)), VLOOKUP(C37, 'Eligible AFDC Station IDs'!$A$1:$D$175, 4, FALSE), \"\")","v":""},{"$f":"IF(NOT(ISBLANK(C37)), VLOOKUP(C37, Budget!$B$9:$U$190, 20, FALSE), \"\")","v":""}]
[null,null,null,{"$f":"IF(NOT(ISBLANK(C38)), VLOOKUP(C38, 'Eligible AFDC Station IDs'!$A$1:$D$175, 4, FALSE), \"\")","v":""},{"$f":"IF(NOT(ISBLANK(C38)), VLOOKUP(C38, Budget!$B$9:$U$190, 20, FALSE), \"\")","v":""}]
[null,null,null,{"$f":"IF(NOT(ISBLANK(C39)), VLOOKUP(C39, 'Eligible AFDC Station IDs'!$A$1:$D$175, 4, FALSE), \"\")","v":""},{"$f":"IF(NOT(ISBLANK(C39)), VLOOKUP(C39, Budget!$B$9:$U$190, 20, FALSE), \"\")","v":""}]
[null,null,null,{"$f":"IF(NOT(ISBLANK(C40)), VLOOKUP(C40, 'Eligible AFDC Station IDs'!$A$1:$D$175, 4, FALSE), \"\")","v":""},{"$f":"IF(NOT(ISBLANK(C40)), VLOOKUP(C40, Budget!$B$9:$U$190, 20, FALSE), \"\")","v":""}]
[null,null,null,{"$f":"IF(NOT(ISBLANK(C41)), VLOOKUP(C41, 'Eligible AFDC Station IDs'!$A$1:$D$175, 4, FALSE), \"\")","v":""},{"$f":"IF(NOT(ISBLANK(C41)), VLOOKUP(C41, Budget!$B$9:$U$190, 20, FALSE), \"\")","v":""}]
[null,null,null,{"$f":"IF(NOT(ISBLANK(C42)), VLOOKUP(C42, 'Eligible AFDC Station IDs'!$A$1:$D$175, 4, FALSE), \"\")","v":""},{"$f":"IF(NOT(ISBLANK(C42)), VLOOKUP(C42, Budget!$B$9:$U$190, 20, FALSE), \"\")","v":""}]
[null,null,null,{"$f":"IF(NOT(ISBLANK(C43)), VLOOKUP(C43, 'Eligible AFDC Station IDs'!$A$1:$D$175, 4, FALSE), \"\")","v":""},{"$f":"IF(NOT(ISBLANK(C43)), VLOOKUP(C43, Budget!$B$9:$U$190, 20, FALSE), \"\")","v":""}]
[null,null,null,{"$f":"IF(NOT(ISBLANK(C44)), VLOOKUP(C44, 'Eligible AFDC Station IDs'!$A$1:$D$175, 4, FALSE), \"\")","v":""},{"$f":"IF(NOT(ISBLANK(C44)), VLOOKUP(C44, Budget!$B$9:$U$190, 20, FALSE), \"\")","v":""}]
[null,null,null,{"$f":"IF(NOT(ISBLANK(C45)), VLOOKUP(C45, 'Eligible AFDC Station IDs'!$A$1:$D$175, 4, FALSE), \"\")","v":""},{"$f":"IF(NOT(ISBLANK(C45)), VLOOKUP(C45, Budget!$B$9:$U$190, 20, FALSE), \"\")","v":""}]
[null,null,null,{"$f":"IF(NOT(ISBLANK(C46)), VLOOKUP(C46, 'Eligible AFDC Station IDs'!$A$1:$D$175, 4, FALSE), \"\")","v":""},{"$f":"IF(NOT(ISBLANK(C46)), VLOOKUP(C46, Budget!$B$9:$U$190, 20, FALSE), \"\")","v":""}]
[null,null,null,{"$f":"IF(NOT(ISBLANK(C47)), VLOOKUP(C47, 'Eligible AFDC Station IDs'!$A$1:$D$175, 4, FALSE), \"\")","v":""},{"$f":"IF(NOT(ISBLANK(C47)), VLOOKUP(C47, Budget!$B$9:$U$190, 20, FALSE), \"\")","v":""}]
[null,null,null,{"$f":"IF(NOT(ISBLANK(C48)), VLOOKUP(C48, 'Eligible AFDC Station IDs'!$A$1:$D$175, 4, FALSE), \"\")","v":""},{"$f":"IF(NOT(ISBLANK(C48)), VLOOKUP(C48, Budget!$B$9:$U$190, 20, FALSE), \"\")","v":""}]
[null,null,null,{"$f":"IF(NOT(ISBLANK(C49)), VLOOKUP(C49, 'Eligible AFDC Station IDs'!$A$1:$D$175, 4, FALSE), \"\")","v":""},{"$f":"IF(NOT(ISBLANK(C49)), VLOOKUP(C49, Budget!$B$9:$U$190, 20, FALSE), \"\")","v":""}]
[null,null,null,{"$f":"IF(NOT(ISBLANK(C50)), VLOOKUP(C50, 'Eligible AFDC Station IDs'!$A$1:$D$175, 4, FALSE), \"\")","v":""},{"$f":"IF(NOT(ISBLANK(C50)), VLOOKUP(C50, Budget!$B$9:$U$190, 20, FALSE), \"\")","v":""}]
[null,null,null,{"$f":"IF(NOT(ISBLANK(C51)), VLOOKUP(C51, 'Eligible AFDC Station IDs'!$A$1:$D$175, 4, FALSE), \"\")","v":""},{"$f":"IF(NOT(ISBLANK(C51)), VLOOKUP(C51, Budget!$B$9:$U$190, 20, FALSE), \"\")","v":""}]
[null,null,null,{"$f":"IF(NOT(ISBLANK(C52)), VLOOKUP(C52, 'Eligible AFDC Station IDs'!$A$1:$D$175, 4, FALSE), \"\")","v":""},{"$f":"IF(NOT(ISBLANK(C52)), VLOOKUP(C52, Budget!$B$9:$U$190, 20, FALSE), \"\")","v":""}]
[null,null,null,{"$f":"IF(NOT(ISBLANK(C53)), VLOOKUP(C53, 'Eligible AFDC Station IDs'!$A$1:$D$175, 4, FALSE), \"\")","v":""},{"$f":"IF(NOT(ISBLANK(C53)), VLOOKUP(C53, Budget!$B$9:$U$190, 20, FALSE), \"\")","v":""}]
[null,null,null,{"$f":"IF(NOT(ISBLANK(C54)), VLOOKUP(C54, 'Eligible AFDC Station IDs'!$A$1:$D$175, 4, FALSE), \"\")","v":""},{"$f":"IF(NOT(ISBLANK(C54)), VLOOKUP(C54, Budget!$B$9:$U$190, 20, FALSE), \"\")","v":""}]
[null,null,null,{"$f":"IF(NOT(ISBLANK(C55)), VLOOKUP(C55, 'Eligible AFDC Station IDs'!$A$1:$D$175, 4, FALSE), \"\")","v":""},{"$f":"IF(NOT(ISBLANK(C55)), VLOOKUP(C55, Budget!$B$9:$U$190, 20, FALSE), \"\")","v":""}]
[null,null,null,{"$f":"IF(NOT(ISBLANK(C56)), VLOOKUP(C56, 'Eligible AFDC Station IDs'!$A$1:$D$175, 4, FALSE), \"\")","v":""},{"$f":"IF(NOT(ISBLANK(C56)), VLOOKUP(C56, Budget!$B$9:$U$190, 20, FALSE), \"\")","v":""}]
[null,null,null,{"$f":"IF(NOT(ISBLANK(C57)), VLOOKUP(C57, 'Eligible AFDC Station IDs'!$A$1:$D$175, 4, FALSE), \"\")","v":""},{"$f":"IF(NOT(ISBLANK(C57)), VLOOKUP(C57, Budget!$B$9:$U$190, 20, FALSE), \"\")","v":""}]
[null,null,null,{"$f":"IF(NOT(ISBLANK(C58)), VLOOKUP(C58, 'Eligible AFDC Station IDs'!$A$1:$D$175, 4, FALSE), \"\")","v":""},{"$f":"IF(NOT(ISBLANK(C58)), VLOOKUP(C58, Budget!$B$9:$U$190, 20, FALSE), \"\")","v":""}]
[null,null,null,{"$f":"IF(NOT(ISBLANK(C59)), VLOOKUP(C59, 'Eligible AFDC Station IDs'!$A$1:$D$175, 4, FALSE), \"\")","v":""},{"$f":"IF(NOT(ISBLANK(C59)), VLOOKUP(C59, Budget!$B$9:$U$190, 20, FALSE), \"\")","v":""}]
[null,null,null,{"$f":"IF(NOT(ISBLANK(C60)), VLOOKUP(C60, 'Eligible AFDC Station IDs'!$A$1:$D$175, 4, FALSE), \"\")","v":""},{"$f":"IF(NOT(ISBLANK(C60)), VLOOKUP(C60, Budget!$B$9:$U$190, 20, FALSE), \"\")","v":""}]
[null,null,null,{"$f":"IF(NOT(ISBLANK(C61)), VLOOKUP(C61, 'Eligible AFDC Station IDs'!$A$1:$D$175, 4, FALSE), \"\")","v":""},{"$f":"IF(NOT(ISBLANK(C61)), VLOOKUP(C61, Budget!$B$9:$U$190, 20, FALSE), \"\")","v":""}]
[null,null,null,{"$f":"IF(NOT(ISBLANK(C62)), VLOOKUP(C62, 'Eligible AFDC Station IDs'!$A$1:$D$175, 4, FALSE), \"\")","v":""},{"$f":"IF(NOT(ISBLANK(C62)), VLOOKUP(C62, Budget!$B$9:$U$190, 20, FALSE), \"\")","v":""}]
[null,null,null,{"$f":"IF(NOT(ISBLANK(C63)), VLOOKUP(C63, 'Eligible AFDC Station IDs'!$A$1:$D$175, 4, FALSE), \"\")","v":""},{"$f":"IF(NOT(ISBLANK(C63)), VLOOKUP(C63, Budget!$B$9:$U$190, 20, FALSE), \"\")","v":""}]
[null,null,null,{"$f":"IF(NOT(ISBLANK(C64)), VLOOKUP(C64, 'Eligible AFDC Station IDs'!$A$1:$D$175, 4, FALSE), \"\")","v":""},{"$f":"IF(NOT(ISBLANK(C64)), VLOOKUP(C64, Budget!$B$9:$U$190, 20, FALSE), \"\")","v":""}]
[null,null,null,{"$f":"IF(NOT(ISBLANK(C65)), VLOOKUP(C65, 'Eligible AFDC Station IDs'!$A$1:$D$175, 4, FALSE), \"\")","v":""},{"$f":"IF(NOT(ISBLANK(C65)), VLOOKUP(C65, Budget!$B$9:$U$190, 20, FALSE), \"\")","v":""}]
[null,null,null,{"$f":"IF(NOT(ISBLANK(C66)), VLOOKUP(C66, 'Eligible AFDC Station IDs'!$A$1:$D$175, 4, FALSE), \"\")","v":""},{"$f":"IF(NOT(ISBLANK(C66)), VLOOKUP(C66, Budget!$B$9:$U$190, 20, FALSE), \"\")","v":""}]
[null,null,null,{"$f":"IF(NOT(ISBLANK(C67)), VLOOKUP(C67, 'Eligible AFDC Station IDs'!$A$1:$D$175, 4, FALSE), \"\")","v":""},{"$f":"IF(NOT(ISBLANK(C67)), VLOOKUP(C67, Budget!$B$9:$U$190, 20, FALSE), \"\")","v":""}]
[null,null,null,{"$f":"IF(NOT(ISBLANK(C68)), VLOOKUP(C68, 'Eligible AFDC Station IDs'!$A$1:$D$175, 4, FALSE), \"\")","v":""},{"$f":"IF(NOT(ISBLANK(C68)), VLOOKUP(C68, Budget!$B$9:$U$190, 20, FALSE), \"\")","v":""}]
[null,null,null,{"$f":"IF(NOT(ISBLANK(C69)), VLOOKUP(C69, 'Eligible AFDC Station IDs'!$A$1:$D$175, 4, FALSE), \"\")","v":""},{"$f":"IF(NOT(ISBLANK(C69)), VLOOKUP(C69, Budget!$B$9:$U$190, 20, FALSE), \"\")","v":""}]
[null,null,null,{"$f":"IF(NOT(ISBLANK(C70)), VLOOKUP(C70, 'Eligible AFDC Station IDs'!$A$1:$D$175, 4, FALSE), \"\")","v":""},{"$f":"IF(NOT(ISBLANK(C70)), VLOOKUP(C70, Budget!$B$9:$U$190, 20, FALSE), \"\")","v":""}]
[null,null,null,{"$f":"IF(NOT(ISBLANK(C71)), VLOOKUP(C71, 'Eligible AFDC Station IDs'!$A$1:$D$175, 4, FALSE), \"\")","v":""},{"$f":"IF(NOT(ISBLANK(C71)), VLOOKUP(C71, Budget!$B$9:$U$190, 20, FALSE), \"\")","v":""}]
[null,null,null,{"$f":"IF(NOT(ISBLANK(C72)), VLOOKUP(C72, 'Eligible AFDC Station IDs'!$A$1:$D$175, 4, FALSE), \"\")","v":""},{"$f":"IF(NOT(ISBLANK(C72)), VLOOKUP(C72, Budget!$B$9:$U$190, 20, FALSE), \"\")","v":""}]
[null,null,null,{"$f":"IF(NOT(ISBLANK(C73)), VLOOKUP(C73, 'Eligible AFDC Station IDs'!$A$1:$D$175, 4, FALSE), \"\")","v":""},{"$f":"IF(NOT(ISBLANK(C73)), VLOOKUP(C73, Budget!$B$9:$U$190, 20, FALSE), \"\")","v":""}]
[null,null,null,{"$f":"IF(NOT(ISBLANK(C74)), VLOOKUP(C74, 'Eligible AFDC Station IDs'!$A$1:$D$175, 4, FALSE), \"\")","v":""},{"$f":"IF(NOT(ISBLANK(C74)), VLOOKUP(C74, Budget!$B$9:$U$190, 20, FALSE), \"\")","v":""}]
[null,null,null,{"$f":"IF(NOT(ISBLANK(C75)), VLOOKUP(C75, 'Eligible AFDC Station IDs'!$A$1:$D$175, 4, FALSE), \"\")","v":""},{"$f":"IF(NOT(ISBLANK(C75)), VLOOKUP(C75, Budget!$B$9:$U$190, 20, FALSE), \"\")","v":""}]
[null,null,null,{"$f":"IF(NOT(ISBLANK(C76)), VLOOKUP(C76, 'Eligible AFDC Station IDs'!$A$1:$D$175, 4, FALSE), \"\")","v":""},{"$f":"IF(NOT(ISBLANK(C76)), VLOOKUP(C76, Budget!$B$9:$U$190, 20, FALSE), \"\")","v":""}]
[null,null,null,{"$f":"IF(NOT(ISBLANK(C77)), VLOOKUP(C77, 'Eligible AFDC Station IDs'!$A$1:$D$175, 4, FALSE), \"\")","v":""},{"$f":"IF(NOT(ISBLANK(C77)), VLOOKUP(C77, Budget!$B$9:$U$190, 20, FALSE), \"\")","v":""}]
[null,null,null,{"$f":"IF(NOT(ISBLANK(C78)), VLOOKUP(C78, 'Eligible AFDC Station IDs'!$A$1:$D$175, 4, FALSE), \"\")","v":""},{"$f":"IF(NOT(ISBLANK(C78)), VLOOKUP(C78, Budget!$B$9:$U$190, 20, FALSE), \"\")","v":""}]
[null,null,null,{"$f":"IF(NOT(ISBLANK(C79)), VLOOKUP(C79, 'Eligible AFDC Station IDs'!$A$1:$D$175, 4, FALSE), \"\")","v":""},{"$f":"IF(NOT(ISBLANK(C79)), VLOOKUP(C79, Budget!$B$9:$U$190, 20, FALSE), \"\")","v":""}]
[null,null,null,{"$f":"IF(NOT(ISBLANK(C80)), VLOOKUP(C80, 'Eligible AFDC Station IDs'!$A$1:$D$175, 4, FALSE), \"\")","v":""},{"$f":"IF(NOT(ISBLANK(C80)), VLOOKUP(C80, Budget!$B$9:$U$190, 20, FALSE), \"\")","v":""}]
[null,null,null,{"$f":"IF(NOT(ISBLANK(C81)), VLOOKUP(C81, 'Eligible AFDC Station IDs'!$A$1:$D$175, 4, FALSE), \"\")","v":""},{"$f":"IF(NOT(ISBLANK(C81)), VLOOKUP(C81, Budget!$B$9:$U$190, 20, FALSE), \"\")","v":""}]
[null,null,null,{"$f":"IF(NOT(ISBLANK(C82)), VLOOKUP(C82, 'Eligible AFDC Station IDs'!$A$1:$D$175, 4, FALSE), \"\")","v":""},{"$f":"IF(NOT(ISBLANK(C82)), VLOOKUP(C82, Budget!$B$9:$U$190, 20, FALSE), \"\")","v":""}]
[null,null,null,{"$f":"IF(NOT(ISBLANK(C83)), VLOOKUP(C83, 'Eligible AFDC Station IDs'!$A$1:$D$175, 4, FALSE), \"\")","v":""},{"$f":"IF(NOT(ISBLANK(C83)), VLOOKUP(C83, Budget!$B$9:$U$190, 20, FALSE), \"\")","v":""}]
[null,null,null,{"$f":"IF(NOT(ISBLANK(C84)), VLOOKUP(C84, 'Eligible AFDC Station IDs'!$A$1:$D$175, 4, FALSE), \"\")","v":""},{"$f":"IF(NOT(ISBLANK(C84)), VLOOKUP(C84, Budget!$B$9:$U$190, 20, FALSE), \"\")","v":""}]
[null,null,null,{"$f":"IF(NOT(ISBLANK(C85)), VLOOKUP(C85, 'Eligible AFDC Station IDs'!$A$1:$D$175, 4, FALSE), \"\")","v":""},{"$f":"IF(NOT(ISBLANK(C85)), VLOOKUP(C85, Budget!$B$9:$U$190, 20, FALSE), \"\")","v":""}]
[null,null,null,{"$f":"IF(NOT(ISBLANK(C86)), VLOOKUP(C86, 'Eligible AFDC Station IDs'!$A$1:$D$175, 4, FALSE), \"\")","v":""},{"$f":"IF(NOT(ISBLANK(C86)), VLOOKUP(C86, Budget!$B$9:$U$190, 20, FALSE), \"\")","v":""}]
[null,null,null,{"$f":"IF(NOT(ISBLANK(C87)), VLOOKUP(C87, 'Eligible AFDC Station IDs'!$A$1:$D$175, 4, FALSE), \"\")","v":""},{"$f":"IF(NOT(ISBLANK(C87)), VLOOKUP(C87, Budget!$B$9:$U$190, 20, FALSE), \"\")","v":""}]
[null,null,null,{"$f":"IF(NOT(ISBLANK(C88)), VLOOKUP(C88, 'Eligible AFDC Station IDs'!$A$1:$D$175, 4, FALSE), \"\")","v":""},{"$f":"IF(NOT(ISBLANK(C88)), VLOOKUP(C88, Budget!$B$9:$U$190, 20, FALSE), \"\")","v":""}]
[null,null,null,{"$f":"IF(NOT(ISBLANK(C89)), VLOOKUP(C89, 'Eligible AFDC Station IDs'!$A$1:$D$175, 4, FALSE), \"\")","v":""},{"$f":"IF(NOT(ISBLANK(C89)), VLOOKUP(C89, Budget!$B$9:$U$190, 20, FALSE), \"\")","v":""}]
[null,null,null,{"$f":"IF(NOT(ISBLANK(C90)), VLOOKUP(C90, 'Eligible AFDC Station IDs'!$A$1:$D$175, 4, FALSE), \"\")","v":""},{"$f":"IF(NOT(ISBLANK(C90)), VLOOKUP(C90, Budget!$B$9:$U$190, 20, FALSE), \"\")","v":""}]
[null,null,null,{"$f":"IF(NOT(ISBLANK(C91)), VLOOKUP(C91, 'Eligible AFDC Station IDs'!$A$1:$D$175, 4, FALSE), \"\")","v":""},{"$f":"IF(NOT(ISBLANK(C91)), VLOOKUP(C91, Budget!$B$9:$U$190, 20, FALSE), \"\")","v":""}]
[null,null,null,{"$f":"IF(NOT(ISBLANK(C92)), VLOOKUP(C92, 'Eligible AFDC Station IDs'!$A$1:$D$175, 4, FALSE), \"\")","v":""},{"$f":"IF(NOT(ISBLANK(C92)), VLOOKUP(C92, Budget!$B$9:$U$190, 20, FALSE), \"\")","v":""}]
[null,null,null,{"$f":"IF(NOT(ISBLANK(C93)), VLOOKUP(C93, 'Eligible AFDC Station IDs'!$A$1:$D$175, 4, FALSE), \"\")","v":""},{"$f":"IF(NOT(ISBLANK(C93)), VLOOKUP(C93, Budget!$B$9:$U$190, 20, FALSE), \"\")","v":""}]
[null,null,null,{"$f":"IF(NOT(ISBLANK(C94)), VLOOKUP(C94, 'Eligible AFDC Station IDs'!$A$1:$D$175, 4, FALSE), \"\")","v":""},{"$f":"IF(NOT(ISBLANK(C94)), VLOOKUP(C94, Budget!$B$9:$U$190, 20, FALSE), \"\")","v":""}]
[null,null,null,{"$f":"IF(NOT(ISBLANK(C95)), VLOOKUP(C95, 'Eligible AFDC Station IDs'!$A$1:$D$175, 4, FALSE), \"\")","v":""},{"$f":"IF(NOT(ISBLANK(C95)), VLOOKUP(C95, Budget!$B$9:$U$190, 20, FALSE), \"\")","v":""}]
[null,null,null,{"$f":"IF(NOT(ISBLANK(C96)), VLOOKUP(C96, 'Eligible AFDC Station IDs'!$A$1:$D$175, 4, FALSE), \"\")","v":""},{"$f":"IF(NOT(ISBLANK(C96)), VLOOKUP(C96, Budget!$B$9:$U$190, 20, FALSE), \"\")","v":""}]
[null,null,null,{"$f":"IF(NOT(ISBLANK(C97)), VLOOKUP(C97, 'Eligible AFDC Station IDs'!$A$1:$D$175, 4, FALSE), \"\")","v":""},{"$f":"IF(NOT(ISBLANK(C97)), VLOOKUP(C97, Budget!$B$9:$U$190, 20, FALSE), \"\")","v":""}]
[null,null,null,{"$f":"IF(NOT(ISBLANK(C98)), VLOOKUP(C98, 'Eligible AFDC Station IDs'!$A$1:$D$175, 4, FALSE), \"\")","v":""},{"$f":"IF(NOT(ISBLANK(C98)), VLOOKUP(C98, Budget!$B$9:$U$190, 20, FALSE), \"\")","v":""}]
[null,null,null,{"$f":"IF(NOT(ISBLANK(C99)), VLOOKUP(C99, 'Eligible AFDC Station IDs'!$A$1:$D$175, 4, FALSE), \"\")","v":""},{"$f":"IF(NOT(ISBLANK(C99)), VLOOKUP(C99, Budget!$B$9:$U$190, 20, FALSE), \"\")","v":""}]
[null,null,null,{"$f":"IF(NOT(ISBLANK(C100)), VLOOKUP(C100, 'Eligible AFDC Station IDs'!$A$1:$D$175, 4, FALSE), \"\")","v":""},{"$f":"IF(NOT(ISBLANK(C100)), VLOOKUP(C100, Budget!$B$9:$U$190, 20, FALSE), \"\")","v":""}]
[null,null,null,{"$f":"IF(NOT(ISBLANK(C101)), VLOOKUP(C101, 'Eligible AFDC Station IDs'!$A$1:$D$175, 4, FALSE), \"\")","v":""},{"$f":"IF(NOT(ISBLANK(C101)), VLOOKUP(C101, Budget!$B$9:$U$190, 20, FALSE), \"\")","v":""}]
[null,null,null,{"$f":"IF(NOT(ISBLANK(C102)), VLOOKUP(C102, 'Eligible AFDC Station IDs'!$A$1:$D$175, 4, FALSE), \"\")","v":""},{"$f":"IF(NOT(ISBLANK(C102)), VLOOKUP(C102, Budget!$B$9:$U$190, 20, FALSE), \"\")","v":""}]
[null,null,null,{"$f":"IF(NOT(ISBLANK(C103)), VLOOKUP(C103, 'Eligible AFDC Station IDs'!$A$1:$D$175, 4, FALSE), \"\")","v":""},{"$f":"IF(NOT(ISBLANK(C103)), VLOOKUP(C103, Budget!$B$9:$U$190, 20, FALSE), \"\")","v":""}]
[null,null,null,{"$f":"IF(NOT(ISBLANK(C104)), VLOOKUP(C104, 'Eligible AFDC Station IDs'!$A$1:$D$175, 4, FALSE), \"\")","v":""},{"$f":"IF(NOT(ISBLANK(C104)), VLOOKUP(C104, Budget!$B$9:$U$190, 20, FALSE), \"\")","v":""}]
[null,null,null,{"$f":"IF(NOT(ISBLANK(C105)), VLOOKUP(C105, 'Eligible AFDC Station IDs'!$A$1:$D$175, 4, FALSE), \"\")","v":""},{"$f":"IF(NOT(ISBLANK(C105)), VLOOKUP(C105, Budget!$B$9:$U$190, 20, FALSE), \"\")","v":""}]
[null,null,null,{"$f":"IF(NOT(ISBLANK(C106)), VLOOKUP(C106, 'Eligible AFDC Station IDs'!$A$1:$D$175, 4, FALSE), \"\")","v":""},{"$f":"IF(NOT(ISBLANK(C106)), VLOOKUP(C106, Budget!$B$9:$U$190, 20, FALSE), \"\")","v":""}]
[null,null,null,{"$f":"IF(NOT(ISBLANK(C107)), VLOOKUP(C107, 'Eligible AFDC Station IDs'!$A$1:$D$175, 4, FALSE), \"\")","v":""},{"$f":"IF(NOT(ISBLANK(C107)), VLOOKUP(C107, Budget!$B$9:$U$190, 20, FALSE), \"\")","v":""}]
[null,null,null,{"$f":"IF(NOT(ISBLANK(C108)), VLOOKUP(C108, 'Eligible AFDC Station IDs'!$A$1:$D$175, 4, FALSE), \"\")","v":""},{"$f":"IF(NOT(ISBLANK(C108)), VLOOKUP(C108, Budget!$B$9:$U$190, 20, FALSE), \"\")","v":""}]
[null,null,null,{"$f":"IF(NOT(ISBLANK(C109)), VLOOKUP(C109, 'Eligible AFDC Station IDs'!$A$1:$D$175, 4, FALSE), \"\")","v":""},{"$f":"IF(NOT(ISBLANK(C109)), VLOOKUP(C109, Budget!$B$9:$U$190, 20, FALSE), \"\")","v":""}]
[null,null,null,{"$f":"IF(NOT(ISBLANK(C110)), VLOOKUP(C110, 'Eligible AFDC Station IDs'!$A$1:$D$175, 4, FALSE), \"\")","v":""},{"$f":"IF(NOT(ISBLANK(C110)), VLOOKUP(C110, Budget!$B$9:$U$190, 20, FALSE), \"\")","v":""}]
[null,null,null,{"$f":"IF(NOT(ISBLANK(C111)), VLOOKUP(C111, 'Eligible AFDC Station IDs'!$A$1:$D$175, 4, FALSE), \"\")","v":""},{"$f":"IF(NOT(ISBLANK(C111)), VLOOKUP(C111, Budget!$B$9:$U$190, 20, FALSE), \"\")","v":""}]
[null,null,null,{"$f":"IF(NOT(ISBLANK(C112)), VLOOKUP(C112, 'Eligible AFDC Station IDs'!$A$1:$D$175, 4, FALSE), \"\")","v":""},{"$f":"IF(NOT(ISBLANK(C112)), VLOOKUP(C112, Budget!$B$9:$U$190, 20, FALSE), \"\")","v":""}]
[null,null,null,{"$f":"IF(NOT(ISBLANK(C113)), VLOOKUP(C113, 'Eligible AFDC Station IDs'!$A$1:$D$175, 4, FALSE), \"\")","v":""},{"$f":"IF(NOT(ISBLANK(C113)), VLOOKUP(C113, Budget!$B$9:$U$190, 20, FALSE), \"\")","v":""}]
[null,null,null,{"$f":"IF(NOT(ISBLANK(C114)), VLOOKUP(C114, 'Eligible AFDC Station IDs'!$A$1:$D$175, 4, FALSE), \"\")","v":""},{"$f":"IF(NOT(ISBLANK(C114)), VLOOKUP(C114, Budget!$B$9:$U$190, 20, FALSE), \"\")","v":""}]
[null,null,null,{"$f":"IF(NOT(ISBLANK(C115)), VLOOKUP(C115, 'Eligible AFDC Station IDs'!$A$1:$D$175, 4, FALSE), \"\")","v":""},{"$f":"IF(NOT(ISBLANK(C115)), VLOOKUP(C115, Budget!$B$9:$U$190, 20, FALSE), \"\")","v":""}]
[null,null,null,{"$f":"IF(NOT(ISBLANK(C116)), VLOOKUP(C116, 'Eligible AFDC Station IDs'!$A$1:$D$175, 4, FALSE), \"\")","v":""},{"$f":"IF(NOT(ISBLANK(C116)), VLOOKUP(C116, Budget!$B$9:$U$190, 20, FALSE), \"\")","v":""}]
[null,null,null,{"$f":"IF(NOT(ISBLANK(C117)), VLOOKUP(C117, 'Eligible AFDC Station IDs'!$A$1:$D$175, 4, FALSE), \"\")","v":""},{"$f":"IF(NOT(ISBLANK(C117)), VLOOKUP(C117, Budget!$B$9:$U$190, 20, FALSE), \"\")","v":""}]
[null,null,null,{"$f":"IF(NOT(ISBLANK(C118)), VLOOKUP(C118, 'Eligible AFDC Station IDs'!$A$1:$D$175, 4, FALSE), \"\")","v":""},{"$f":"IF(NOT(ISBLANK(C118)), VLOOKUP(C118, Budget!$B$9:$U$190, 20, FALSE), \"\")","v":""}]
[null,null,null,{"$f":"IF(NOT(ISBLANK(C119)), VLOOKUP(C119, 'Eligible AFDC Station IDs'!$A$1:$D$175, 4, FALSE), \"\")","v":""},{"$f":"IF(NOT(ISBLANK(C119)), VLOOKUP(C119, Budget!$B$9:$U$190, 20, FALSE), \"\")","v":""}]
[null,null,null,{"$f":"IF(NOT(ISBLANK(C120)), VLOOKUP(C120, 'Eligible AFDC Station IDs'!$A$1:$D$175, 4, FALSE), \"\")","v":""},{"$f":"IF(NOT(ISBLANK(C120)), VLOOKUP(C120, Budget!$B$9:$U$190, 20, FALSE), \"\")","v":""}]
[null,null,null,{"$f":"IF(NOT(ISBLANK(C121)), VLOOKUP(C121, 'Eligible AFDC Station IDs'!$A$1:$D$175, 4, FALSE), \"\")","v":""},{"$f":"IF(NOT(ISBLANK(C121)), VLOOKUP(C121, Budget!$B$9:$U$190, 20, FALSE), \"\")","v":""}]
[null,null,null,{"$f":"IF(NOT(ISBLANK(C122)), VLOOKUP(C122, 'Eligible AFDC Station IDs'!$A$1:$D$175, 4, FALSE), \"\")","v":""},{"$f":"IF(NOT(ISBLANK(C122)), VLOOKUP(C122, Budget!$B$9:$U$190, 20, FALSE), \"\")","v":""}]
[null,null,null,{"$f":"IF(NOT(ISBLANK(C123)), VLOOKUP(C123, 'Eligible AFDC Station IDs'!$A$1:$D$175, 4, FALSE), \"\")","v":""},{"$f":"IF(NOT(ISBLANK(C123)), VLOOKUP(C123, Budget!$B$9:$U$190, 20, FALSE), \"\")","v":""}]
[null,null,null,{"$f":"IF(NOT(ISBLANK(C124)), VLOOKUP(C124, 'Eligible AFDC Station IDs'!$A$1:$D$175, 4, FALSE), \"\")","v":""},{"$f":"IF(NOT(ISBLANK(C124)), VLOOKUP(C124, Budget!$B$9:$U$190, 20, FALSE), \"\")","v":""}]
[null,null,null,{"$f":"IF(NOT(ISBLANK(C125)), VLOOKUP(C125, 'Eligible AFDC Station IDs'!$A$1:$D$175, 4, FALSE), \"\")","v":""},{"$f":"IF(NOT(ISBLANK(C125)), VLOOKUP(C125, Budget!$B$9:$U$190, 20, FALSE), \"\")","v":""}]
[null,null,null,{"$f":"IF(NOT(ISBLANK(C126)), VLOOKUP(C126, 'Eligible AFDC Station IDs'!$A$1:$D$175, 4, FALSE), \"\")","v":""},{"$f":"IF(NOT(ISBLANK(C126)), VLOOKUP(C126, Budget!$B$9:$U$190, 20, FALSE), \"\")","v":""}]
[null,null,null,{"$f":"IF(NOT(ISBLANK(C127)), VLOOKUP(C127, 'Eligible AFDC Station IDs'!$A$1:$D$175, 4, FALSE), \"\")","v":""},{"$f":"IF(NOT(ISBLANK(C127)), VLOOKUP(C127, Budget!$B$9:$U$190, 20, FALSE), \"\")","v":""}]
[null,null,null,{"$f":"IF(NOT(ISBLANK(C128)), VLOOKUP(C128, 'Eligible AFDC Station IDs'!$A$1:$D$175, 4, FALSE), \"\")","v":""},{"$f":"IF(NOT(ISBLANK(C128)), VLOOKUP(C128, Budget!$B$9:$U$190, 20, FALSE), \"\")","v":""}]
[null,null,null,{"$f":"IF(NOT(ISBLANK(C129)), VLOOKUP(C129, 'Eligible AFDC Station IDs'!$A$1:$D$175, 4, FALSE), \"\")","v":""},{"$f":"IF(NOT(ISBLANK(C129)), VLOOKUP(C129, Budget!$B$9:$U$190, 20, FALSE), \"\")","v":""}]
[null,null,null,{"$f":"IF(NOT(ISBLANK(C130)), VLOOKUP(C130, 'Eligible AFDC Station IDs'!$A$1:$D$175, 4, FALSE), \"\")","v":""},{"$f":"IF(NOT(ISBLANK(C130)), VLOOKUP(C130, Budget!$B$9:$U$190, 20, FALSE), \"\")","v":""}]
[null,null,null,{"$f":"IF(NOT(ISBLANK(C131)), VLOOKUP(C131, 'Eligible AFDC Station IDs'!$A$1:$D$175, 4, FALSE), \"\")","v":""},{"$f":"IF(NOT(ISBLANK(C131)), VLOOKUP(C131, Budget!$B$9:$U$190, 20, FALSE), \"\")","v":""}]
[null,null,null,{"$f":"IF(NOT(ISBLANK(C132)), VLOOKUP(C132, 'Eligible AFDC Station IDs'!$A$1:$D$175, 4, FALSE), \"\")","v":""},{"$f":"IF(NOT(ISBLANK(C132)), VLOOKUP(C132, Budget!$B$9:$U$190, 20, FALSE), \"\")","v":""}]
[null,null,null,{"$f":"IF(NOT(ISBLANK(C133)), VLOOKUP(C133, 'Eligible AFDC Station IDs'!$A$1:$D$175, 4, FALSE), \"\")","v":""},{"$f":"IF(NOT(ISBLANK(C133)), VLOOKUP(C133, Budget!$B$9:$U$190, 20, FALSE), \"\")","v":""}]
[null,null,null,{"$f":"IF(NOT(ISBLANK(C134)), VLOOKUP(C134, 'Eligible AFDC Station IDs'!$A$1:$D$175, 4, FALSE), \"\")","v":""},{"$f":"IF(NOT(ISBLANK(C134)), VLOOKUP(C134, Budget!$B$9:$U$190, 20, FALSE), \"\")","v":""}]
[null,null,null,{"$f":"IF(NOT(ISBLANK(C135)), VLOOKUP(C135, 'Eligible AFDC Station IDs'!$A$1:$D$175, 4, FALSE), \"\")","v":""},{"$f":"IF(NOT(ISBLANK(C135)), VLOOKUP(C135, Budget!$B$9:$U$190, 20, FALSE), \"\")","v":""}]
[null,null,null,{"$f":"IF(NOT(ISBLANK(C136)), VLOOKUP(C136, 'Eligible AFDC Station IDs'!$A$1:$D$175, 4, FALSE), \"\")","v":""},{"$f":"IF(NOT(ISBLANK(C136)), VLOOKUP(C136, Budget!$B$9:$U$190, 20, FALSE), \"\")","v":""}]
[null,null,null,{"$f":"IF(NOT(ISBLANK(C137)), VLOOKUP(C137, 'Eligible AFDC Station IDs'!$A$1:$D$175, 4, FALSE), \"\")","v":""},{"$f":"IF(NOT(ISBLANK(C137)), VLOOKUP(C137, Budget!$B$9:$U$190, 20, FALSE), \"\")","v":""}]
[null,null,null,{"$f":"IF(NOT(ISBLANK(C138)), VLOOKUP(C138, 'Eligible AFDC Station IDs'!$A$1:$D$175, 4, FALSE), \"\")","v":""},{"$f":"IF(NOT(ISBLANK(C138)), VLOOKUP(C138, Budget!$B$9:$U$190, 20, FALSE), \"\")","v":""}]
[null,null,null,{"$f":"IF(NOT(ISBLANK(C139)), VLOOKUP(C139, 'Eligible AFDC Station IDs'!$A$1:$D$175, 4, FALSE), \"\")","v":""},{"$f":"IF(NOT(ISBLANK(C139)), VLOOKUP(C139, Budget!$B$9:$U$190, 20, FALSE), \"\")","v":""}]
[null,null,null,{"$f":"IF(NOT(ISBLANK(C140)), VLOOKUP(C140, 'Eligible AFDC Station IDs'!$A$1:$D$175, 4, FALSE), \"\")","v":""},{"$f":"IF(NOT(ISBLANK(C140)), VLOOKUP(C140, Budget!$B$9:$U$190, 20, FALSE), \"\")","v":""}]
[null,null,null,{"$f":"IF(NOT(ISBLANK(C141)), VLOOKUP(C141, 'Eligible AFDC Station IDs'!$A$1:$D$175, 4, FALSE), \"\")","v":""},{"$f":"IF(NOT(ISBLANK(C141)), VLOOKUP(C141, Budget!$B$9:$U$190, 20, FALSE), \"\")","v":""}]
[null,null,null,{"$f":"IF(NOT(ISBLANK(C142)), VLOOKUP(C142, 'Eligible AFDC Station IDs'!$A$1:$D$175, 4, FALSE), \"\")","v":""},{"$f":"IF(NOT(ISBLANK(C142)), VLOOKUP(C142, Budget!$B$9:$U$190, 20, FALSE), \"\")","v":""}]
[null,null,null,{"$f":"IF(NOT(ISBLANK(C143)), VLOOKUP(C143, 'Eligible AFDC Station IDs'!$A$1:$D$175, 4, FALSE), \"\")","v":""},{"$f":"IF(NOT(ISBLANK(C143)), VLOOKUP(C143, Budget!$B$9:$U$190, 20, FALSE), \"\")","v":""}]
[null,null,null,{"$f":"IF(NOT(ISBLANK(C144)), VLOOKUP(C144, 'Eligible AFDC Station IDs'!$A$1:$D$175, 4, FALSE), \"\")","v":""},{"$f":"IF(NOT(ISBLANK(C144)), VLOOKUP(C144, Budget!$B$9:$U$190, 20, FALSE), \"\")","v":""}]
[null,null,null,{"$f":"IF(NOT(ISBLANK(C145)), VLOOKUP(C145, 'Eligible AFDC Station IDs'!$A$1:$D$175, 4, FALSE), \"\")","v":""},{"$f":"IF(NOT(ISBLANK(C145)), VLOOKUP(C145, Budget!$B$9:$U$190, 20, FALSE), \"\")","v":""}]
[null,null,null,{"$f":"IF(NOT(ISBLANK(C146)), VLOOKUP(C146, 'Eligible AFDC Station IDs'!$A$1:$D$175, 4, FALSE), \"\")","v":""},{"$f":"IF(NOT(ISBLANK(C146)), VLOOKUP(C146, Budget!$B$9:$U$190, 20, FALSE), \"\")","v":""}]
[null,null,null,{"$f":"IF(NOT(ISBLANK(C147)), VLOOKUP(C147, 'Eligible AFDC Station IDs'!$A$1:$D$175, 4, FALSE), \"\")","v":""},{"$f":"IF(NOT(ISBLANK(C147)), VLOOKUP(C147, Budget!$B$9:$U$190, 20, FALSE), \"\")","v":""}]
[null,null,null,{"$f":"IF(NOT(ISBLANK(C148)), VLOOKUP(C148, 'Eligible AFDC Station IDs'!$A$1:$D$175, 4, FALSE), \"\")","v":""},{"$f":"IF(NOT(ISBLANK(C148)), VLOOKUP(C148, Budget!$B$9:$U$190, 20, FALSE), \"\")","v":""}]
[null,null,null,{"$f":"IF(NOT(ISBLANK(C149)), VLOOKUP(C149, 'Eligible AFDC Station IDs'!$A$1:$D$175, 4, FALSE), \"\")","v":""},{"$f":"IF(NOT(ISBLANK(C149)), VLOOKUP(C149, Budget!$B$9:$U$190, 20, FALSE), \"\")","v":""}]
[null,null,null,{"$f":"IF(NOT(ISBLANK(C150)), VLOOKUP(C150, 'Eligible AFDC Station IDs'!$A$1:$D$175, 4, FALSE), \"\")","v":""},{"$f":"IF(NOT(ISBLANK(C150)), VLOOKUP(C150, Budget!$B$9:$U$190, 20, FALSE), \"\")","v":""}]
[null,null,null,{"$f":"IF(NOT(ISBLANK(C151)), VLOOKUP(C151, 'Eligible AFDC Station IDs'!$A$1:$D$175, 4, FALSE), \"\")","v":""},{"$f":"IF(NOT(ISBLANK(C151)), VLOOKUP(C151, Budget!$B$9:$U$190, 20, FALSE), \"\")","v":""}]
[null,null,null,{"$f":"IF(NOT(ISBLANK(C152)), VLOOKUP(C152, 'Eligible AFDC Station IDs'!$A$1:$D$175, 4, FALSE), \"\")","v":""},{"$f":"IF(NOT(ISBLANK(C152)), VLOOKUP(C152, Budget!$B$9:$U$190, 20, FALSE), \"\")","v":""}]
[null,null,null,{"$f":"IF(NOT(ISBLANK(C153)), VLOOKUP(C153, 'Eligible AFDC Station IDs'!$A$1:$D$175, 4, FALSE), \"\")","v":""},{"$f":"IF(NOT(ISBLANK(C153)), VLOOKUP(C153, Budget!$B$9:$U$190, 20, FALSE), \"\")","v":""}]
[null,null,null,{"$f":"IF(NOT(ISBLANK(C154)), VLOOKUP(C154, 'Eligible AFDC Station IDs'!$A$1:$D$175, 4, FALSE), \"\")","v":""},{"$f":"IF(NOT(ISBLANK(C154)), VLOOKUP(C154, Budget!$B$9:$U$190, 20, FALSE), \"\")","v":""}]
[null,null,null,{"$f":"IF(NOT(ISBLANK(C155)), VLOOKUP(C155, 'Eligible AFDC Station IDs'!$A$1:$D$175, 4, FALSE), \"\")","v":""},{"$f":"IF(NOT(ISBLANK(C155)), VLOOKUP(C155, Budget!$B$9:$U$190, 20, FALSE), \"\")","v":""}]
[null,null,null,{"$f":"IF(NOT(ISBLANK(C156)), VLOOKUP(C156, 'Eligible AFDC Station IDs'!$A$1:$D$175, 4, FALSE), \"\")","v":""},{"$f":"IF(NOT(ISBLANK(C156)), VLOOKUP(C156, Budget!$B$9:$U$190, 20, FALSE), \"\")","v":""}]
[null,null,null,{"$f":"IF(NOT(ISBLANK(C157)), VLOOKUP(C157, 'Eligible AFDC Station IDs'!$A$1:$D$175, 4, FALSE), \"\")","v":""},{"$f":"IF(NOT(ISBLANK(C157)), VLOOKUP(C157, Budget!$B$9:$U$190, 20, FALSE), \"\")","v":""}]
[null,null,null,{"$f":"IF(NOT(ISBLANK(C158)), VLOOKUP(C158, 'Eligible AFDC Station IDs'!$A$1:$D$175, 4, FALSE), \"\")","v":""},{"$f":"IF(NOT(ISBLANK(C158)), VLOOKUP(C158, Budget!$B$9:$U$190, 20, FALSE), \"\")","v":""}]
[null,null,null,{"$f":"IF(NOT(ISBLANK(C159)), VLOOKUP(C159, 'Eligible AFDC Station IDs'!$A$1:$D$175, 4, FALSE), \"\")","v":""},{"$f":"IF(NOT(ISBLANK(C159)), VLOOKUP(C159, Budget!$B$9:$U$190, 20, FALSE), \"\")","v":""}]
[null,null,null,{"$f":"IF(NOT(ISBLANK(C160)), VLOOKUP(C160, 'Eligible AFDC Station IDs'!$A$1:$D$175, 4, FALSE), \"\")","v":""},{"$f":"IF(NOT(ISBLANK(C160)), VLOOKUP(C160, Budget!$B$9:$U$190, 20, FALSE), \"\")","v":""}]
[null,null,null,{"$f":"IF(NOT(ISBLANK(C161)), VLOOKUP(C161, 'Eligible AFDC Station IDs'!$A$1:$D$175, 4, FALSE), \"\")","v":""},{"$f":"IF(NOT(ISBLANK(C161)), VLOOKUP(C161, Budget!$B$9:$U$190, 20, FALSE), \"\")","v":""}]
[null,null,null,{"$f":"IF(NOT(ISBLANK(C162)), VLOOKUP(C162, 'Eligible AFDC Station IDs'!$A$1:$D$175, 4, FALSE), \"\")","v":""},{"$f":"IF(NOT(ISBLANK(C162)), VLOOKUP(C162, Budget!$B$9:$U$190, 20, FALSE), \"\")","v":""}]
[null,null,null,{"$f":"IF(NOT(ISBLANK(C163)), VLOOKUP(C163, 'Eligible AFDC Station IDs'!$A$1:$D$175, 4, FALSE), \"\")","v":""},{"$f":"IF(NOT(ISBLANK(C163)), VLOOKUP(C163, Budget!$B$9:$U$190, 20, FALSE), \"\")","v":""}]
[null,null,null,{"$f":"IF(NOT(ISBLANK(C164)), VLOOKUP(C164, 'Eligible AFDC Station IDs'!$A$1:$D$175, 4, FALSE), \"\")","v":""},{"$f":"IF(NOT(ISBLANK(C164)), VLOOKUP(C164, Budget!$B$9:$U$190, 20, FALSE), \"\")","v":""}]
[null,null,null,{"$f":"IF(NOT(ISBLANK(C165)), VLOOKUP(C165, 'Eligible AFDC Station IDs'!$A$1:$D$175, 4, FALSE), \"\")","v":""},{"$f":"IF(NOT(ISBLANK(C165)), VLOOKUP(C165, Budget!$B$9:$U$190, 20, FALSE), \"\")","v":""}]
[null,null,null,{"$f":"IF(NOT(ISBLANK(C166)), VLOOKUP(C166, 'Eligible AFDC Station IDs'!$A$1:$D$175, 4, FALSE), \"\")","v":""},{"$f":"IF(NOT(ISBLANK(C166)), VLOOKUP(C166, Budget!$B$9:$U$190, 20, FALSE), \"\")","v":""}]
[null,null,null,{"$f":"IF(NOT(ISBLANK(C167)), VLOOKUP(C167, 'Eligible AFDC Station IDs'!$A$1:$D$175, 4, FALSE), \"\")","v":""},{"$f":"IF(NOT(ISBLANK(C167)), VLOOKUP(C167, Budget!$B$9:$U$190, 20, FALSE), \"\")","v":""}]
[null,null,null,{"$f":"IF(NOT(ISBLANK(C168)), VLOOKUP(C168, 'Eligible AFDC Station IDs'!$A$1:$D$175, 4, FALSE), \"\")","v":""},{"$f":"IF(NOT(ISBLANK(C168)), VLOOKUP(C168, Budget!$B$9:$U$190, 20, FALSE), \"\")","v":""}]
[null,null,null,{"$f":"IF(NOT(ISBLANK(C169)), VLOOKUP(C169, 'Eligible AFDC Station IDs'!$A$1:$D$175, 4, FALSE), \"\")","v":""},{"$f":"IF(NOT(ISBLANK(C169)), VLOOKUP(C169, Budget!$B$9:$U$190, 20, FALSE), \"\")","v":""}]
[null,null,null,{"$f":"IF(NOT(ISBLANK(C170)), VLOOKUP(C170, 'Eligible AFDC Station IDs'!$A$1:$D$175, 4, FALSE), \"\")","v":""},{"$f":"IF(NOT(ISBLANK(C170)), VLOOKUP(C170, Budget!$B$9:$U$190, 20, FALSE), \"\")","v":""}]
[null,null,null,{"$f":"IF(NOT(ISBLANK(C171)), VLOOKUP(C171, 'Eligible AFDC Station IDs'!$A$1:$D$175, 4, FALSE), \"\")","v":""},{"$f":"IF(NOT(ISBLANK(C171)), VLOOKUP(C171, Budget!$B$9:$U$190, 20, FALSE), \"\")","v":""}]
[null,null,null,{"$f":"IF(NOT(ISBLANK(C172)), VLOOKUP(C172, 'Eligible AFDC Station IDs'!$A$1:$D$175, 4, FALSE), \"\")","v":""},{"$f":"IF(NOT(ISBLANK(C172)), VLOOKUP(C172, Budget!$B$9:$U$190, 20, FALSE), \"\")","v":""}]
[null,null,null,{"$f":"IF(NOT(ISBLANK(C173)), VLOOKUP(C173, 'Eligible AFDC Station IDs'!$A$1:$D$175, 4, FALSE), \"\")","v":""},{"$f":"IF(NOT(ISBLANK(C173)), VLOOKUP(C173, Budget!$B$9:$U$190, 20, FALSE), \"\")","v":""}]
[null,null,null,{"$f":"IF(NOT(ISBLANK(C174)), VLOOKUP(C174, 'Eligible AFDC Station IDs'!$A$1:$D$175, 4, FALSE), \"\")","v":""},{"$f":"IF(NOT(ISBLANK(C174)), VLOOKUP(C174, Budget!$B$9:$U$190, 20, FALSE), \"\")","v":""}]
[null,null,null,{"$f":"IF(NOT(ISBLANK(C175)), VLOOKUP(C175, 'Eligible AFDC Station IDs'!$A$1:$D$175, 4, FALSE), \"\")","v":""},{"$f":"IF(NOT(ISBLANK(C175)), VLOOKUP(C175, Budget!$B$9:$U$190, 20, FALSE), \"\")","v":""}]
[null,null,null,{"$f":"IF(NOT(ISBLANK(C176)), VLOOKUP(C176, 'Eligible AFDC Station IDs'!$A$1:$D$175, 4, FALSE), \"\")","v":""},{"$f":"IF(NOT(ISBLANK(C176)), VLOOKUP(C176, Budget!$B$9:$U$190, 20, FALSE), \"\")","v":""}]
[null,null,null,{"$f":"IF(NOT(ISBLANK(C177)), VLOOKUP(C177, 'Eligible AFDC Station IDs'!$A$1:$D$175, 4, FALSE), \"\")","v":""},{"$f":"IF(NOT(ISBLANK(C177)), VLOOKUP(C177, Budget!$B$9:$U$190, 20, FALSE), \"\")","v":""}]
[null,null,null,{"$f":"IF(NOT(ISBLANK(C178)), VLOOKUP(C178, 'Eligible AFDC Station IDs'!$A$1:$D$175, 4, FALSE), \"\")","v":""},{"$f":"IF(NOT(ISBLANK(C178)), VLOOKUP(C178, Budget!$B$9:$U$190, 20, FALSE), \"\")","v":""}]
[null,null,null,{"$f":"IF(NOT(ISBLANK(C179)), VLOOKUP(C179, 'Eligible AFDC Station IDs'!$A$1:$D$175, 4, FALSE), \"\")","v":""},{"$f":"IF(NOT(ISBLANK(C179)), VLOOKUP(C179, Budget!$B$9:$U$190, 20, FALSE), \"\")","v":""}]
[null,null,null,{"$f":"IF(NOT(ISBLANK(C180)), VLOOKUP(C180, 'Eligible AFDC Station IDs'!$A$1:$D$175, 4, FALSE), \"\")","v":""},{"$f":"IF(NOT(ISBLANK(C180)), VLOOKUP(C180, Budget!$B$9:$U$190, 20, FALSE), \"\")","v":""}]
[null,null,null,{"$f":"IF(NOT(ISBLANK(C181)), VLOOKUP(C181, 'Eligible AFDC Station IDs'!$A$1:$D$175, 4, FALSE), \"\")","v":""},{"$f":"IF(NOT(ISBLANK(C181)), VLOOKUP(C181, Budget!$B$9:$U$190, 20, FALSE), \"\")","v":""}]
[null,null,null,{"$f":"IF(NOT(ISBLANK(C182)), VLOOKUP(C182, 'Eligible AFDC Station IDs'!$A$1:$D$175, 4, FALSE), \"\")","v":""},{"$f":"IF(NOT(ISBLANK(C182)), VLOOKUP(C182, Budget!$B$9:$U$190, 20, FALSE), \"\")","v":""}]
[null,null,null,{"$f":"IF(NOT(ISBLANK(C183)), VLOOKUP(C183, 'Eligible AFDC Station IDs'!$A$1:$D$175, 4, FALSE), \"\")","v":""},{"$f":"IF(NOT(ISBLANK(C183)), VLOOKUP(C183, Budget!$B$9:$U$190, 20, FALSE), \"\")","v":""}]
[null,null,null,{"$f":"IF(NOT(ISBLANK(C184)), VLOOKUP(C184, 'Eligible AFDC Station IDs'!$A$1:$D$175, 4, FALSE), \"\")","v":""},{"$f":"IF(NOT(ISBLANK(C184)), VLOOKUP(C184, Budget!$B$9:$U$190, 20, FALSE), \"\")","v":""}]
[null,null,null,{"$f":"IF(NOT(ISBLANK(C185)), VLOOKUP(C185, 'Eligible AFDC Station IDs'!$A$1:$D$175, 4, FALSE), \"\")","v":""},{"$f":"IF(NOT(ISBLANK(C185)), VLOOKUP(C185, Budget!$B$9:$U$190, 20, FALSE), \"\")","v":""}]
[null,null,null,{"$f":"IF(NOT(ISBLANK(C186)), VLOOKUP(C186, 'Eligible AFDC Station IDs'!$A$1:$D$175, 4, FALSE), \"\")","v":""},{"$f":"IF(NOT(ISBLANK(C186)), VLOOKUP(C186, Budget!$B$9:$U$190, 20, FALSE), \"\")","v":""}]
[null,null,null,{"$f":"IF(NOT(ISBLANK(C187)), VLOOKUP(C187, 'Eligible AFDC Station IDs'!$A$1:$D$175, 4, FALSE), \"\")","v":""},{"$f":"IF(NOT(ISBLANK(C187)), VLOOKUP(C187, Budget!$B$9:$U$190, 20, FALSE), \"\")","v":""}]
[null,null,null,{"$f":"IF(NOT(ISBLANK(C188)), VLOOKUP(C188, 'Eligible AFDC Station IDs'!$A$1:$D$175, 4, FALSE), \"\")","v":""},{"$f":"IF(NOT(ISBLANK(C188)), VLOOKUP(C188, Budget!$B$9:$U$190, 20, FALSE), \"\")","v":""}]
[null,null,null,{"$f":"IF(NOT(ISBLANK(C189)), VLOOKUP(C189, 'Eligible AFDC Station IDs'!$A$1:$D$175, 4, FALSE), \"\")","v":""},{"$f":"IF(NOT(ISBLANK(C189)), VLOOKUP(C189, Budget!$B$9:$U$190, 20, FALSE), \"\")","v":""}]
[null,null,null,{"$f":"IF(NOT(ISBLANK(C190)), VLOOKUP(C190, 'Eligible AFDC Station IDs'!$A$1:$D$175, 4, FALSE), \"\")","v":""},{"$f":"IF(NOT(ISBLANK(C190)), VLOOKUP(C190, Budget!$B$9:$U$190, 20, FALSE), \"\")","v":""}]
[null,null,null,{"$f":"IF(NOT(ISBLANK(C191)), VLOOKUP(C191, 'Eligible AFDC Station IDs'!$A$1:$D$175, 4, FALSE), \"\")","v":""},{"$f":"IF(NOT(ISBLANK(C191)), VLOOKUP(C191, Budget!$B$9:$U$190, 20, FALSE), \"\")","v":""}]
[null,null,null,{"$f":"IF(NOT(ISBLANK(C192)), VLOOKUP(C192, 'Eligible AFDC Station IDs'!$A$1:$D$175, 4, FALSE), \"\")","v":""},{"$f":"IF(NOT(ISBLANK(C192)), VLOOKUP(C192, Budget!$B$9:$U$190, 20, FALSE), \"\")","v":""}]
[null,null,null,{"$f":"IF(NOT(ISBLANK(C193)), VLOOKUP(C193, 'Eligible AFDC Station IDs'!$A$1:$D$175, 4, FALSE), \"\")","v":""},{"$f":"IF(NOT(ISBLANK(C193)), VLOOKUP(C193, Budget!$B$9:$U$190, 20, FALSE), \"\")","v":""}]
[null,null,null,{"$f":"IF(NOT(ISBLANK(C194)), VLOOKUP(C194, 'Eligible AFDC Station IDs'!$A$1:$D$175, 4, FALSE), \"\")","v":""},{"$f":"IF(NOT(ISBLANK(C194)), VLOOKUP(C194, Budget!$B$9:$U$190, 20, FALSE), \"\")","v":""}]
[null,null,null,{"$f":"IF(NOT(ISBLANK(C195)), VLOOKUP(C195, 'Eligible AFDC Station IDs'!$A$1:$D$175, 4, FALSE), \"\")","v":""},{"$f":"IF(NOT(ISBLANK(C195)), VLOOKUP(C195, Budget!$B$9:$U$190, 20, FALSE), \"\")","v":""}]
[null,null,null,{"$f":"IF(NOT(ISBLANK(C196)), VLOOKUP(C196, 'Eligible AFDC Station IDs'!$A$1:$D$175, 4, FALSE), \"\")","v":""},{"$f":"IF(NOT(ISBLANK(C196)), VLOOKUP(C196, Budget!$B$9:$U$190, 20, FALSE), \"\")","v":""}]
[null,null,null,{"$f":"IF(NOT(ISBLANK(C197)), VLOOKUP(C197, 'Eligible AFDC Station IDs'!$A$1:$D$175, 4, FALSE), \"\")","v":""},{"$f":"IF(NOT(ISBLANK(C197)), VLOOKUP(C197, Budget!$B$9:$U$190, 20, FALSE), \"\")","v":""}]
[null,null,null,{"$f":"IF(NOT(ISBLANK(C198)), VLOOKUP(C198, 'Eligible AFDC Station IDs'!$A$1:$D$175, 4, FALSE), \"\")","v":""},{"$f":"IF(NOT(ISBLANK(C198)), VLOOKUP(C198, Budget!$B$9:$U$190, 20, FALSE), \"\")","v":""}]
[null,null,null,{"$f":"IF(NOT(ISBLANK(C199)), VLOOKUP(C199, 'Eligible AFDC Station IDs'!$A$1:$D$175, 4, FALSE), \"\")","v":""},{"$f":"IF(NOT(ISBLANK(C199)), VLOOKUP(C199, Budget!$B$9:$U$190, 20, FALSE), \"\")","v":""}]
[null,null,null,{"$f":"IF(NOT(ISBLANK(C200)), VLOOKUP(C200, 'Eligible AFDC Station IDs'!$A$1:$D$175, 4, FALSE), \"\")","v":""},{"$f":"IF(NOT(ISBLANK(C200)), VLOOKUP(C200, Budget!$B$9:$U$190, 20, FALSE), \"\")","v":""}]
[null,null,null,null,{"$f":"IF(NOT(ISBLANK(C201)), VLOOKUP(C201, Budget!$B$9:$U$190, 20, FALSE), \"\")","v":""}]
[null,null,null,null,{"$f":"IF(NOT(ISBLANK(C202)), VLOOKUP(C202, Budget!$B$9:$U$190, 20, FALSE), \"\")","v":""}]
[null,null,null,null,{"$f":"IF(NOT(ISBLANK(C203)), VLOOKUP(C203, Budget!$B$9:$U$190, 20, FALSE), \"\")","v":""}]
[null,null,null,null,{"$f":"IF(NOT(ISBLANK(C204)), VLOOKUP(C204, Budget!$B$9:$U$190, 20, FALSE), \"\")","v":""}]
[null,null,null,null,{"$f":"IF(NOT(ISBLANK(C205)), VLOOKUP(C205, Budget!$B$9:$U$190, 20, FALSE), \"\")","v":""}]
[null,null,null,null,{"$f":"IF(NOT(ISBLANK(C206)), VLOOKUP(C206, Budget!$B$9:$U$190, 20, FALSE), \"\")","v":""}]
[null,null,null,null,{"$f":"IF(NOT(ISBLANK(C207)), VLOOKUP(C207, Budget!$B$9:$U$190, 20, FALSE), \"\")","v":""}]
[null,null,null,null,{"$f":"IF(NOT(ISBLANK(C208)), VLOOKUP(C208, Budget!$B$9:$U$190, 20, FALSE), \"\")","v":""}]
[null,null,null,null,{"$f":"IF(NOT(ISBLANK(C209)), VLOOKUP(C209, Budget!$B$9:$U$190, 20, FALSE), \"\")","v":""}]
[null,null,null,null,{"$f":"IF(NOT(ISBLANK(C210)), VLOOKUP(C210, Budget!$B$9:$U$190, 20, FALSE), \"\")","v":""}]
[null,null,null,null,{"$f":"IF(NOT(ISBLANK(C211)), VLOOKUP(C211, Budget!$B$9:$U$190, 20, FALSE), \"\")","v":""}]
[null,null,null,null,{"$f":"IF(NOT(ISBLANK(C212)), VLOOKUP(C212, Budget!$B$9:$U$190, 20, FALSE), \"\")","v":""}]
[null,null,null,null,{"$f":"IF(NOT(ISBLANK(C213)), VLOOKUP(C213, Budget!$B$9:$U$190, 20, FALSE), \"\")","v":""}]
[null,null,null,null,{"$f":"IF(NOT(ISBLANK(C214)), VLOOKUP(C214, Budget!$B$9:$U$190, 20, FALSE), \"\")","v":""}]
[null,null,null,null,{"$f":"IF(NOT(ISBLANK(C215)), VLOOKUP(C215, Budget!$B$9:$U$190, 20, FALSE), \"\")","v":""}]
[null,null,null,null,{"$f":"IF(NOT(ISBLANK(C216)), VLOOKUP(C216, Budget!$B$9:$U$190, 20, FALSE), \"\")","v":""}]
[null,null,null,null,{"$f":"IF(NOT(ISBLANK(C217)), VLOOKUP(C217, Budget!$B$9:$U$190, 20, FALSE), \"\")","v":""}]
[null,null,null,null,{"$f":"IF(NOT(ISBLANK(C218)), VLOOKUP(C218, Budget!$B$9:$U$190, 20, FALSE), \"\")","v":""}]
[null,null,null,null,{"$f":"IF(NOT(ISBLANK(C219)), VLOOKUP(C219, Budget!$B$9:$U$190, 20, FALSE), \"\")","v":""}]
[null,null,null,null,{"$f":"IF(NOT(ISBLANK(C220)), VLOOKUP(C220, Budget!$B$9:$U$190, 20, FALSE), \"\")","v":""}]
[null,null,null,null,{"$f":"IF(NOT(ISBLANK(C221)), VLOOKUP(C221, Budget!$B$9:$U$190, 20, FALSE), \"\")","v":""}]
[null,null,null,null,{"$f":"IF(NOT(ISBLANK(C222)), VLOOKUP(C222, Budget!$B$9:$U$190, 20, FALSE), \"\")","v":""}]
[null,null,null,null,{"$f":"IF(NOT(ISBLANK(C223)), VLOOKUP(C223, Budget!$B$9:$U$190, 20, FALSE), \"\")","v":""}]
[null,null,null,null,{"$f":"IF(NOT(ISBLANK(C224)), VLOOKUP(C224, Budget!$B$9:$U$190, 20, FALSE), \"\")","v":""}]
[null,null,null,null,{"$f":"IF(NOT(ISBLANK(C225)), VLOOKUP(C225, Budget!$B$9:$U$190, 20, FALSE), \"\")","v":""}]
[null,null,null,null,{"$f":"IF(NOT(ISBLANK(C226)), VLOOKUP(C226, Budget!$B$9:$U$190, 20, FALSE), \"\")","v":""}]
[null,null,null,null,{"$f":"IF(NOT(ISBLANK(C227)), VLOOKUP(C227, Budget!$B$9:$U$190, 20, FALSE), \"\")","v":""}]
[null,null,null,null,{"$f":"IF(NOT(ISBLANK(C228)), VLOOKUP(C228, Budget!$B$9:$U$190, 20, FALSE), \"\")","v":""}]
[null,null,null,null,{"$f":"IF(NOT(ISBLANK(C229)), VLOOKUP(C229, Budget!$B$9:$U$190, 20, FALSE), \"\")","v":""}]
[null,null,null,null,{"$f":"IF(NOT(ISBLANK(C230)), VLOOKUP(C230, Budget!$B$9:$U$190, 20, FALSE), \"\")","v":""}]
[null,null,null,null,{"$f":"IF(NOT(ISBLANK(C231)), VLOOKUP(C231, Budget!$B$9:$U$190, 20, FALSE), \"\")","v":""}]
[null,null,null,null,{"$f":"IF(NOT(ISBLANK(C232)), VLOOKUP(C232, Budget!$B$9:$U$190, 20, FALSE), \"\")","v":""}]
[null,null,null,null,{"$f":"IF(NOT(ISBLANK(C233)), VLOOKUP(C233, Budget!$B$9:$U$190, 20, FALSE), \"\")","v":""}]
[null,null,null,null,{"$f":"IF(NOT(ISBLANK(C234)), VLOOKUP(C234, Budget!$B$9:$U$190, 20, FALSE), \"\")","v":""}]
[null,null,null,null,{"$f":"IF(NOT(ISBLANK(C235)), VLOOKUP(C235, Budget!$B$9:$U$190, 20, FALSE), \"\")","v":""}]
[null,null,null,null,{"$f":"IF(NOT(ISBLANK(C236)), VLOOKUP(C236, Budget!$B$9:$U$190, 20, FALSE), \"\")","v":""}]

{"sheet":"Budget","index":2,"n_rows":179,"n_cols":21,"rows_kept":179,"cut":false,"hidden":false,"merged":[[5,1,6,1],[8,20,9,20],[8,1,9,1],[8,2,8,4],[8,5,8,8],[8,9,8,11],[8,18,9,18],[8,19,9,19],[5,2,6,16],[5,18,5,19],[6,18,6,19]]}
[]
[null,"PennDOT EVC-RAA Proposal Excel File - Step 5: Budget Information"]
[null,"* For each proposed Project, Prospective Contractors apply for 80 percent federal cost share of the eligible costs, with a required match of 20 percent from non-federal sources."]
[null,"* If a Prospective Contractor wishes to overmatch to make their Project more competative, they should exclude costs from the Budget tab table and instead describe those costs in the narrative section on the Budget tab."]
[]
[null,"(Optional) Budget Narrative",null,null,null,null,null,null,null,null,null,null,null,null,null,null,null,null,"Total Budget for All Projects"]
[null,null,null,null,null,null,null,null,null,null,null,null,null,null,null,null,null,null,{"$f":"SUM(U11:U190)","v":0}]
[]
[null,"AFDC Station ID","Pre-Construction",null,null,"Construction",null,null,null,"Equipment",null,null,"Utility","Networking Contract","Warranty/\nMaintenance\nContract","Workforce Training","EV Charging Safety Trainings",null,"Amount From PennDOT EVC-RAA Funding Opportunity","Amount From Other Funding Private","Total Project Budget\n(Should match with eGrants)"]
[null,null,"Permitting","Design","Other","Site Work","Electrical","Installation/\nCommission-ing","Other","Chargers","Supporting Equipment","Other","-","-","-","-","-"]
[{"$f":"NOT(ISBLANK(Overview!C12))","v":false},{"$f":"IFERROR(IF(ISBLANK(_xlfn._xlws.FILTER(Overview!C12:C200, A11:A199)), \"-\", _xlfn._xlws.FILTER(Overview!C12:C200, A11:A199)), \"-\")","v":"-"},null,null,null,null,null,null,null,null,null,null,null,null,null,null,null,null,{"$f":"IF(SUM(C11:Q11)<>0, SUM(C11:Q11)*0.8, \"\")","v":""},{"$f":"IF(SUM(C11:Q11)<>0, SUM(C11:Q11)*0.2, \"\")","v":""},{"$f":"IF(SUM(C11:Q11)<>0, SUM(C11:Q11), \"\")","v":""}]
[{"$f":"NOT(ISBLANK(Overview!C13))","v":false},null,null,null,null,null,null,null,null,null,null,null,null,null,null,null,null,null,"","",""]
[{"$f":"NOT(ISBLANK(Overview!C14))","v":false},null,null,null,null,null,null,null,null,null,null,null,null,null,null,null,null,null,"","",""]
[{"$f":"NOT(ISBLANK(Overview!C15))","v":false},null,null,null,null,null,null,null,null,null,null,null,null,null,null,null,null,null,"","",""]
[{"$f":"NOT(ISBLANK(Overview!C16))","v":false},null,null,null,null,null,null,null,null,null,null,null,null,null,null,null,null,null,"","",""]
[{"$f":"NOT(ISBLANK(Overview!C17))","v":false},null,null,null,null,null,null,null,null,null,null,null,null,null,null,null,null,null,"","",""]
[{"$f":"NOT(ISBLANK(Overview!C18))","v":false},null,null,null,null,null,null,null,null,null,null,null,null,null,null,null,null,null,"","",""]
[{"$f":"NOT(ISBLANK(Overview!C19))","v":false},null,null,null,null,null,null,null,null,null,null,null,null,null,null,null,null,null,"","",""]
[{"$f":"NOT(ISBLANK(Overview!C20))","v":false},null,null,null,null,null,null,null,null,null,null,null,null,null,null,null,null,null,"","",""]
[{"$f":"NOT(ISBLANK(Overview!C21))","v":false},null,null,null,null,null,null,null,null,null,null,null,null,null,null,null,null,null,"","",""]
[{"$f":"NOT(ISBLANK(Overview!C22))","v":false},null,null,null,null,null,null,null,null,null,null,null,null,null,null,null,null,null,"","",""]
[{"$f":"NOT(ISBLANK(Overview!C23))","v":false},null,null,null,null,null,null,null,null,null,null,null,null,null,null,null,null,null,"","",""]
[{"$f":"NOT(ISBLANK(Overview!C24))","v":false},null,null,null,null,null,null,null,null,null,null,null,null,null,null,null,null,null,"","",""]
[{"$f":"NOT(ISBLANK(Overview!C25))","v":false},null,null,null,null,null,null,null,null,null,null,null,null,null,null,null,null,null,"","",""]
[{"$f":"NOT(ISBLANK(Overview!C26))","v":false},null,null,null,null,null,null,null,null,null,null,null,null,null,null,null,null,null,"","",""]
[{"$f":"NOT(ISBLANK(Overview!C53))","v":false},null,null,null,null,null,null,null,null,null,null,null,null,null,null,null,null,null,"","",""]
[{"$f":"NOT(ISBLANK(Overview!C54))","v":false},null,null,null,null,null,null,null,null,null,null,null,null,null,null,null,null,null,"","",""]
[{"$f":"NOT(ISBLANK(Overview!C55))","v":false},null,null,null,null,null,null,null,null,null,null,null,null,null,null,null,null,null,"","",""]
[{"$f":"NOT(ISBLANK(Overview!C56))","v":false},null,null,null,null,null,null,null,null,null,null,null,null,null,null,null,null,null,"","",""]
[{"$f":"NOT(ISBLANK(Overview!C57))","v":false},null,null,null,null,null,null,null,null,null,null,null,null,null,null,null,null,null,"","",""]
[{"$f":"NOT(ISBLANK(Overview!C58))","v":false},null,null,null,null,null,null,null,null,null,null,null,null,null,null,null,null,null,"","",""]
[{"$f":"NOT(ISBLANK(Overview!C59))","v":false},null,null,null,null,null,null,null,null,null,null,null,null,null,null,null,null,null,"","",""]
[{"$f":"NOT(ISBLANK(Overview!C60))","v":false},null,null,null,null,null,null,null,null,null,null,null,null,null,null,null,null,null,"","",""]
[{"$f":"NOT(ISBLANK(Overview!C61))","v":false},null,null,null,null,null,null,null,null,null,null,null,null,null,null,null,null,null,"","",""]
[{"$f":"NOT(ISBLANK(Overview!C62))","v":false},null,null,null,null,null,null,null,null,null,null,null,null,null,null,null,null,null,"","",""]
[{"$f":"NOT(ISBLANK(Overview!C63))","v":false},null,null,null,null,null,null,null,null,null,null,null,null,null,null,null,null,null,"","",""]
[{"$f":"NOT(ISBLANK(Overview!C64))","v":false},null,null,null,null,null,null,null,null,null,null,null,null,null,null,null,null,null,"","",""]
[{"$f":"NOT(ISBLANK(Overview!C65))","v":false},null,null,null,null,null,null,null,null,null,null,null,null,null,null,null,null,null,"","",""]
[{"$f":"NOT(ISBLANK(Overview!C66))","v":false},null,null,null,null,null,null,null,null,null,null,null,null,null,null,null,null,null,"","",""]
[{"$f":"NOT(ISBLANK(Overview!C67))","v":false},null,null,null,null,null,null,null,null,null,null,null,null,null,null,null,null,null,"","",""]
[{"$f":"NOT(ISBLANK(Overview!C68))","v":false},null,null,null,null,null,null,null,null,null,null,null,null,null,null,null,null,null,"","",""]
[{"$f":"NOT(ISBLANK(Overview!C69))","v":false},null,null,null,null,null,null,null,null,null,null,null,null,null,null,null,null,null,"","",""]
[{"$f":"NOT(ISBLANK(Overview!C70))","v":false},null,null,null,null,null,null,null,null,null,null,null,null,null,null,null,null,null,{"$f":"IF(SUM(C43:Q43)<>0, SUM(C43:Q43)*0.8, \"\")","v":""},{"$f":"IF(SUM(C43:Q43)<>0, SUM(C43:Q43)*0.2, \"\")","v":""},{"$f":"IF(SUM(C43:Q43)<>0, SUM(C43:Q43), \"\")","v":""}]
[{"$f":"NOT(ISBLANK(Overview!C71))","v":false},null,null,null,null,null,null,null,null,null,null,null,null,null,null,null,null,null,"","",""]
[{"$f":"NOT(ISBLANK(Overview!C72))","v":false},null,null,null,null,null,null,null,null,null,null,null,null,null,null,null,null,null,"","",""]
[{"$f":"NOT(ISBLANK(Overview!C73))","v":false},null,null,null,null,null,null,null,null,null,null,null,null,null,null,null,null,null,"","",""]
[{"$f":"NOT(ISBLANK(Overview!C74))","v":false},null,null,null,null,null,null,null,null,null,null,null,null,null,null,null,null,null,"","",""]
[{"$f":"NOT(ISBLANK(Overview!C75))","v":false},null,null,null,null,null,null,null,null,null,null,null,null,null,null,null,null,null,"","",""]
[{"$f":"NOT(ISBLANK(Overview!C76))","v":false},null,null,null,null,null,null,null,null,null,null,null,null,null,null,null,null,null,"","",""]
[{"$f":"NOT(ISBLANK(Overview!C77))","v":false},null,null,null,null,null,null,null,null,null,null,null,null,null,null,null,null,null,"","",""]
[{"$f":"NOT(ISBLANK(Overview!C78))","v":false},null,null,null,null,null,null,null,null,null,null,null,null,null,null,null,null,null,"","",""]
[{"$f":"NOT(ISBLANK(Overview!C79))","v":false},null,null,null,null,null,null,null,null,null,null,null,null,null,null,null,null,null,"","",""]
[{"$f":"NOT(ISBLANK(Overview!C80))","v":false},null,null,null,null,null,null,null,null,null,null,null,null,null,null,null,null,null,"","",""]
[{"$f":"NOT(ISBLANK(Overview!C81))","v":false},null,null,null,null,null,null,null,null,null,null,null,null,null,null,null,null,null,"","",""]
[{"$f":"NOT(ISBLANK(Overview!C82))","v":false},null,null,null,null,null,null,null,null,null,null,null,null,null,null,null,null,null,"","",""]
[{"$f":"NOT(ISBLANK(Overview!C83))","v":false},null,null,null,null,null,null,null,null,null,null,null,null,null,null,null,null,null,"","",""]
[{"$f":"NOT(ISBLANK(Overview!C84))","v":false},null,null,null,null,null,null,null,null,null,null,null,null,null,null,null,null,null,"","",""]
[{"$f":"NOT(ISBLANK(Overview!C85))","v":false},null,null,null,null,null,null,null,null,null,null,null,null,null,null,null,null,null,"","",""]
[{"$f":"NOT(ISBLANK(Overview!C86))","v":false},null,null,null,null,null,null,null,null,null,null,null,null,null,null,null,null,null,"","",""]
[{"$f":"NOT(ISBLANK(Overview!C87))","v":false},null,null,null,null,null,null,null,null,null,null,null,null,null,null,null,null,null,"","",""]
[{"$f":"NOT(ISBLANK(Overview!C88))","v":false},null,null,null,null,null,null,null,null,null,null,null,null,null,null,null,null,null,"","",""]
[{"$f":"NOT(ISBLANK(Overview!C89))","v":false},null,null,null,null,null,null,null,null,null,null,null,null,null,null,null,null,null,"","",""]
[{"$f":"NOT(ISBLANK(Overview!C90))","v":false},null,null,null,null,null,null,null,null,null,null,null,null,null,null,null,null,null,"","",""]
[{"$f":"NOT(ISBLANK(Overview!C91))","v":false},null,null,null,null,null,null,null,null,null,null,null,null,null,null,null,null,null,"","",""]
[{"$f":"NOT(ISBLANK(Overview!C92))","v":false},null,null,null,null,null,null,null,null,null,null,null,null,null,null,null,null,null,"","",""]
[{"$f":"NOT(ISBLANK(Overview!C93))","v":false},null,null,null,null,null,null,null,null,null,null,null,null,null,null,null,null,null,"","",""]
[{"$f":"NOT(ISBLANK(Overview!C94))","v":false},null,null,null,null,null,null,null,null,null,null,null,null,null,null,null,null,null,"","",""]
[{"$f":"NOT(ISBLANK(Overview!C95))","v":false},null,null,null,null,null,null,null,null,null,null,null,null,null,null,null,null,null,"","",""]
[{"$f":"NOT(ISBLANK(Overview!C96))","v":false},null,null,null,null,null,null,null,null,null,null,null,null,null,null,null,null,null,"","",""]
[{"$f":"NOT(ISBLANK(Overview!C97))","v":false},null,null,null,null,null,null,null,null,null,null,null,null,null,null,null,null,null,"","",""]
[{"$f":"NOT(ISBLANK(Overview!C98))","v":false},null,null,null,null,null,null,null,null,null,null,null,null,null,null,null,null,null,"","",""]
[{"$f":"NOT(ISBLANK(Overview!C99))","v":false},null,null,null,null,null,null,null,null,null,null,null,null,null,null,null,null,null,"","",""]
[{"$f":"NOT(ISBLANK(Overview!C100))","v":false},null,null,null,null,null,null,null,null,null,null,null,null,null,null,null,null,null,"","",""]
[{"$f":"NOT(ISBLANK(Overview!C101))","v":false},null,null,null,null,null,null,null,null,null,null,null,null,null,null,null,null,null,"","",""]
[{"$f":"NOT(ISBLANK(Overview!C102))","v":false},null,null,null,null,null,null,null,null,null,null,null,null,null,null,null,null,null,{"$f":"IF(SUM(C75:Q75)<>0, SUM(C75:Q75)*0.8, \"\")","v":""},{"$f":"IF(SUM(C75:Q75)<>0, SUM(C75:Q75)*0.2, \"\")","v":""},{"$f":"IF(SUM(C75:Q75)<>0, SUM(C75:Q75), \"\")","v":""}]
[{"$f":"NOT(ISBLANK(Overview!C103))","v":false},null,null,null,null,null,null,null,null,null,null,null,null,null,null,null,null,null,"","",""]
[{"$f":"NOT(ISBLANK(Overview!C104))","v":false},null,null,null,null,null,null,null,null,null,null,null,null,null,null,null,null,null,"","",""]
[{"$f":"NOT(ISBLANK(Overview!C105))","v":false},null,null,null,null,null,null,null,null,null,null,null,null,null,null,null,null,null,"","",""]
[{"$f":"NOT(ISBLANK(Overview!C106))","v":false},null,null,null,null,null,null,null,null,null,null,null,null,null,null,null,null,null,"","",""]
[{"$f":"NOT(ISBLANK(Overview!C107))","v":false},null,null,null,null,null,null,null,null,null,null,null,null,null,null,null,null,null,"","",""]
[{"$f":"NOT(ISBLANK(Overview!C108))","v":false},null,null,null,null,null,null,null,null,null,null,null,null,null,null,null,null,null,"","",""]
[{"$f":"NOT(ISBLANK(Overview!C109))","v":false},null,null,null,null,null,null,null,null,null,null,null,null,null,null,null,null,null,"","",""]
[{"$f":"NOT(ISBLANK(Overview!C110))","v":false},null,null,null,null,null,null,null,null,null,null,null,null,null,null,null,null,null,"","",""]
[{"$f":"NOT(ISBLANK(Overview!C111))","v":false},null,null,null,null,null,null,null,null,null,null,null,null,null,null,null,null,null,"","",""]
[{"$f":"NOT(ISBLANK(Overview!C112))","v":false},null,null,null,null,null,null,null,null,null,null,null,null,null,null,null,null,null,"","",""]
[{"$f":"NOT(ISBLANK(Overview!C113))","v":false},null,null,null,null,null,null,null,null,null,null,null,null,null,null,null,null,null,"","",""]
[{"$f":"NOT(ISBLANK(Overview!C114))","v":false},null,null,null,null,null,null,null,null,null,null,null,null,null,null,null,null,null,"","",""]
[{"$f":"NOT(ISBLANK(Overview!C115))","v":false},null,null,null,null,null,null,null,null,null,null,null,null,null,null,null,null,null,"","",""]
[{"$f":"NOT(ISBLANK(Overview!C116))","v":false},null,null,null,null,null,null,null,null,null,null,null,null,null,null,null,null,null,"","",""]
[{"$f":"NOT(ISBLANK(Overview!C117))","v":false},null,null,null,null,null,null,null,null,null,null,null,null,null,null,null,null,null,"","",""]
[{"$f":"NOT(ISBLANK(Overview!C118))","v":false},null,null,null,null,null,null,null,null,null,null,null,null,null,null,null,null,null,"","",""]
[{"$f":"NOT(ISBLANK(Overview!C119))","v":false},null,null,null,null,null,null,null,null,null,null,null,null,null,null,null,null,null,"","",""]
[{"$f":"NOT(ISBLANK(Overview!C120))","v":false},null,null,null,null,null,null,null,null,null,null,null,null,null,null,null,null,null,"","",""]
[{"$f":"NOT(ISBLANK(Overview!C121))","v":false},null,null,null,null,null,null,null,null,null,null,null,null,null,null,null,null,null,"","",""]
[{"$f":"NOT(ISBLANK(Overview!C122))","v":false},null,null,null,null,null,null,null,null,null,null,null,null,null,null,null,null,null,"","",""]
[{"$f":"NOT(ISBLANK(Overview!C123))","v":false},null,null,null,null,null,null,null,null,null,null,null,null,null,null,null,null,null,"","",""]
[{"$f":"NOT(ISBLANK(Overview!C124))","v":false},null,null,null,null,null,null,null,null,null,null,null,null,null,null,null,null,null,"","",""]
[{"$f":"NOT(ISBLANK(Overview!C125))","v":false},null,null,null,null,null,null,null,null,null,null,null,null,null,null,null,null,null,"","",""]
[{"$f":"NOT(ISBLANK(Overview!C126))","v":false},null,null,null,null,null,null,null,null,null,null,null,null,null,null,null,null,null,"","",""]
[{"$f":"NOT(ISBLANK(Overview!C127))","v":false},null,null,null,null,null,null,null,null,null,null,null,null,null,null,null,null,null,"","",""]
[{"$f":"NOT(ISBLANK(Overview!C128))","v":false},null,null,null,null,null,null,null,null,null,null,null,null,null,null,null,null,null,"","",""]
[{"$f":"NOT(ISBLANK(Overview!C129))","v":false},null,null,null,null,null,null,null,null,null,null,null,null,null,null,null,null,null,"","",""]
[{"$f":"NOT(ISBLANK(Overview!C130))","v":false},null,null,null,null,null,null,null,null,null,null,null,null,null,null,null,null,null,"","",""]
[{"$f":"NOT(ISBLANK(Overview!C131))","v":false},null,null,null,null,null,null,null,null,null,null,null,null,null,null,null,null,null,"","",""]
[{"$f":"NOT(ISBLANK(Overview!C132))","v":false},null,null,null,null,null,null,null,null,null,null,null,null,null,null,null,null,null,"","",""]
[{"$f":"NOT(ISBLANK(Overview!C133))","v":false},null,null,null,null,null,null,null,null,null,null,null,null,null,null,null,null,null,"","",""]
[{"$f":"NOT(ISBLANK(Overview!C134))","v":false},null,null,null,null,null,null,null,null,null,null,null,null,null,null,null,null,null,{"$f":"IF(SUM(C107:Q107)<>0, SUM(C107:Q107)*0.8, \"\")","v":""},{"$f":"IF(SUM(C107:Q107)<>0, SUM(C107:Q107)*0.2, \"\")","v":""},{"$f":"IF(SUM(C107:Q107)<>0, SUM(C107:Q107), \"\")","v":""}]
[{"$f":"NOT(ISBLANK(Overview!C135))","v":false},null,null,null,null,null,null,null,null,null,null,null,null,null,null,null,null,null,"","",""]
[{"$f":"NOT(ISBLANK(Overview!C136))","v":false},null,null,null,null,null,null,null,null,null,null,null,null,null,null,null,null,null,"","",""]
[{"$f":"NOT(ISBLANK(Overview!C137))","v":false},null,null,null,null,null,null,null,null,null,null,null,null,null,null,null,null,null,"","",""]
[{"$f":"NOT(ISBLANK(Overview!C138))","v":false},null,null,null,null,null,null,null,null,null,null,null,null,null,null,null,null,null,"","",""]
[{"$f":"NOT(ISBLANK(Overview!C139))","v":false},null,null,null,null,null,null,null,null,null,null,null,null,null,null,null,null,null,"","",""]
[{"$f":"NOT(ISBLANK(Overview!C140))","v":false},null,null,null,null,null,null,null,null,null,null,null,null,null,null,null,null,null,"","",""]
[{"$f":"NOT(ISBLANK(Overview!C141))","v":false},null,null,null,null,null,null,null,null,null,null,null,null,null,null,null,null,null,"","",""]
[{"$f":"NOT(ISBLANK(Overview!C142))","v":false},null,null,null,null,null,null,null,null,null,null,null,null,null,null,null,null,null,"","",""]
[{"$f":"NOT(ISBLANK(Overview!C143))","v":false},null,null,null,null,null,null,null,null,null,null,null,null,null,null,null,null,null,"","",""]
[{"$f":"NOT(ISBLANK(Overview!C144))","v":false},null,null,null,null,null,null,null,null,null,null,null,null,null,null,null,null,null,"","",""]
[{"$f":"NOT(ISBLANK(Overview!C145))","v":false},null,null,null,null,null,null,null,null,null,null,null,null,null,null,null,null,null,"","",""]
[{"$f":"NOT(ISBLANK(Overview!C146))","v":false},null,null,null,null,null,null,null,null,null,null,null,null,null,null,null,null,null,"","",""]
[{"$f":"NOT(ISBLANK(Overview!C147))","v":false},null,null,null,null,null,null,null,null,null,null,null,null,null,null,null,null,null,"","",""]
[{"$f":"NOT(ISBLANK(Overview!C148))","v":false},null,null,null,null,null,null,null,null,null,null,null,null,null,null,null,null,null,"","",""]
[{"$f":"NOT(ISBLANK(Overview!C149))","v":false},null,null,null,null,null,null,null,null,null,null,null,null,null,null,null,null,null,"","",""]
[{"$f":"NOT(ISBLANK(Overview!C150))","v":false},null,null,null,null,null,null,null,null,null,null,null,null,null,null,null,null,null,"","",""]
[{"$f":"NOT(ISBLANK(Overview!C151))","v":false},null,null,null,null,null,null,null,null,null,null,null,null,null,null,null,null,null,"","",""]
[{"$f":"NOT(ISBLANK(Overview!C152))","v":false},null,null,null,null,null,null,null,null,null,null,null,null,null,null,null,null,null,"","",""]
[{"$f":"NOT(ISBLANK(Overview!C153))","v":false},null,null,null,null,null,null,null,null,null,null,null,null,null,null,null,null,null,"","",""]
[{"$f":"NOT(ISBLANK(Overview!C154))","v":false},null,null,null,null,null,null,null,null,null,null,null,null,null,null,null,null,null,"","",""]
[{"$f":"NOT(ISBLANK(Overview!C155))","v":false},null,null,null,null,null,null,null,null,null,null,null,null,null,null,null,null,null,"","",""]
[{"$f":"NOT(ISBLANK(Overview!C156))","v":false},null,null,null,null,null,null,null,null,null,null,null,null,null,null,null,null,null,"","",""]
[{"$f":"NOT(ISBLANK(Overview!C157))","v":false},null,null,null,null,null,null,null,null,null,null,null,null,null,null,null,null,null,"","",""]
[{"$f":"NOT(ISBLANK(Overview!C158))","v":false},null,null,null,null,null,null,null,null,null,null,null,null,null,null,null,null,null,"","",""]
[{"$f":"NOT(ISBLANK(Overview!C159))","v":false},null,null,null,null,null,null,null,null,null,null,null,null,null,null,null,null,null,"","",""]
[{"$f":"NOT(ISBLANK(Overview!C160))","v":false},null,null,null,null,null,null,null,null,null,null,null,null,null,null,null,null,null,"","",""]
[{"$f":"NOT(ISBLANK(Overview!C161))","v":false},null,null,null,null,null,null,null,null,null,null,null,null,null,null,null,null,null,"","",""]
[{"$f":"NOT(ISBLANK(Overview!C162))","v":false},null,null,null,null,null,null,null,null,null,null,null,null,null,null,null,null,null,"","",""]
[{"$f":"NOT(ISBLANK(Overview!C163))","v":false},null,null,null,null,null,null,null,null,null,null,null,null,null,null,null,null,null,"","",""]
[{"$f":"NOT(ISBLANK(Overview!C164))","v":false},null,null,null,null,null,null,null,null,null,null,null,null,null,null,null,null,null,"","",""]
[{"$f":"NOT(ISBLANK(Overview!C165))","v":false},null,null,null,null,null,null,null,null,null,null,null,null,null,null,null,null,null,"","",""]
[{"$f":"NOT(ISBLANK(Overview!C166))","v":false},null,null,null,null,null,null,null,null,null,null,null,null,null,null,null,null,null,{"$f":"IF(SUM(C139:Q139)<>0, SUM(C139:Q139)*0.8, \"\")","v":""},{"$f":"IF(SUM(C139:Q139)<>0, SUM(C139:Q139)*0.2, \"\")","v":""},{"$f":"IF(SUM(C139:Q139)<>0, SUM(C139:Q139), \"\")","v":""}]
[{"$f":"NOT(ISBLANK(Overview!C167))","v":false},null,null,null,null,null,null,null,null,null,null,null,null,null,null,null,null,null,"","",""]
[{"$f":"NOT(ISBLANK(Overview!C168))","v":false},null,null,null,null,null,null,null,null,null,null,null,null,null,null,null,null,null,"","",""]
[{"$f":"NOT(ISBLANK(Overview!C169))","v":false},null,null,null,null,null,null,null,null,null,null,null,null,null,null,null,null,null,"","",""]
[{"$f":"NOT(ISBLANK(Overview!C170))","v":false},null,null,null,null,null,null,null,null,null,null,null,null,null,null,null,null,null,"","",""]
[{"$f":"NOT(ISBLANK(Overview!C171))","v":false},null,null,null,null,null,null,null,null,null,null,null,null,null,null,null,null,null,"","",""]
[{"$f":"NOT(ISBLANK(Overview!C172))","v":false},null,null,null,null,null,null,null,null,null,null,null,null,null,null,null,null,null,"","",""]
[{"$f":"NOT(ISBLANK(Overview!C173))","v":false},null,null,null,null,null,null,null,null,null,null,null,null,null,null,null,null,null,"","",""]
[{"$f":"NOT(ISBLANK(Overview!C174))","v":false},null,null,null,null,null,null,null,null,null,null,null,null,null,null,null,null,null,"","",""]
[{"$f":"NOT(ISBLANK(Overview!C175))","v":false},null,null,null,null,null,null,null,null,null,null,null,null,null,null,null,null,null,"","",""]
[{"$f":"NOT(ISBLANK(Overview!C176))","v":false},null,null,null,null,null,null,null,null,null,null,null,null,null,null,null,null,null,"","",""]
[{"$f":"NOT(ISBLANK(Overview!C177))","v":false},null,null,null,null,null,null,null,null,null,null,null,null,null,null,null,null,null,"","",""]
[{"$f":"NOT(ISBLANK(Overview!C178))","v":false},null,null,null,null,null,null,null,null,null,null,null,null,null,null,null,null,null,"","",""]
[{"$f":"NOT(ISBLANK(Overview!C179))","v":false},null,null,null,null,null,null,null,null,null,null,null,null,null,null,null,null,null,"","",""]
[{"$f":"NOT(ISBLANK(Overview!C180))","v":false},null,null,null,null,null,null,null,null,null,null,null,null,null,null,null,null,null,"","",""]
[{"$f":"NOT(ISBLANK(Overview!C181))","v":false},null,null,null,null,null,null,null,null,null,null,null,null,null,null,null,null,null,"","",""]
[{"$f":"NOT(ISBLANK(Overview!C182))","v":false},null,null,null,null,null,null,null,null,null,null,null,null,null,null,null,null,null,"","",""]
[{"$f":"NOT(ISBLANK(Overview!C183))","v":false},null,null,null,null,null,null,null,null,null,null,null,null,null,null,null,null,null,"","",""]
[{"$f":"NOT(ISBLANK(Overview!C184))","v":false},null,null,null,null,null,null,null,null,null,null,null,null,null,null,null,null,null,"","",""]
[{"$f":"NOT(ISBLANK(Overview!C185))","v":false},null,null,null,null,null,null,null,null,null,null,null,null,null,null,null,null,null,"","",""]
[{"$f":"NOT(ISBLANK(Overview!C186))","v":false},null,null,null,null,null,null,null,null,null,null,null,null,null,null,null,null,null,"","",""]
[{"$f":"NOT(ISBLANK(Overview!C187))","v":false},null,null,null,null,null,null,null,null,null,null,null,null,null,null,null,null,null,"","",""]
[{"$f":"NOT(ISBLANK(Overview!C188))","v":false},null,null,null,null,null,null,null,null,null,null,null,null,null,null,null,null,null,"","",""]
[{"$f":"NOT(ISBLANK(Overview!C189))","v":false},null,null,null,null,null,null,null,null,null,null,null,null,null,null,null,null,null,"","",""]
[{"$f":"NOT(ISBLANK(Overview!C190))","v":false},null,null,null,null,null,null,null,null,null,null,null,null,null,null,null,null,null,"","",""]
[{"$f":"NOT(ISBLANK(Overview!C191))","v":false},null,null,null,null,null,null,null,null,null,null,null,null,null,null,null,null,null,"","",""]
[{"$f":"NOT(ISBLANK(Overview!C192))","v":false},null,null,null,null,null,null,null,null,null,null,null,null,null,null,null,null,null,"","",""]
[{"$f":"NOT(ISBLANK(Overview!C193))","v":false},null,null,null,null,null,null,null,null,null,null,null,null,null,null,null,null,null,"","",""]
[{"$f":"NOT(ISBLANK(Overview!C194))","v":false},null,null,null,null,null,null,null,null,null,null,null,null,null,null,null,null,null,"","",""]
[{"$f":"NOT(ISBLANK(Overview!C195))","v":false},null,null,null,null,null,null,null,null,null,null,null,null,null,null,null,null,null,"","",""]
[{"$f":"NOT(ISBLANK(Overview!C196))","v":false},null,null,null,null,null,null,null,null,null,null,null,null,null,null,null,null,null,"","",""]
[{"$f":"NOT(ISBLANK(Overview!C197))","v":false},null,null,null,null,null,null,null,null,null,null,null,null,null,null,null,null,null,"","",""]
[{"$f":"NOT(ISBLANK(Overview!C198))","v":false},null,null,null,null,null,null,null,null,null,null,null,null,null,null,null,null,null,{"$f":"IF(SUM(C171:Q171)<>0, SUM(C171:Q171)*0.8, \"\")","v":""},{"$f":"IF(SUM(C171:Q171)<>0, SUM(C171:Q171)*0.2, \"\")","v":""},{"$f":"IF(SUM(C171:Q171)<>0, SUM(C171:Q171), \"\")","v":""}]
[{"$f":"NOT(ISBLANK(Overview!C199))","v":false},null,null,null,null,null,null,null,null,null,null,null,null,null,null,null,null,null,"","",""]
[{"$f":"NOT(ISBLANK(Overview!C200))","v":false},null,null,null,null,null,null,null,null,null,null,null,null,null,null,null,null,null,"","",""]
[null,null,null,null,null,null,null,null,null,null,null,null,null,null,null,null,null,null,"","",""]
[null,null,null,null,null,null,null,null,null,null,null,null,null,null,null,null,null,null,"","",""]
[null,null,null,null,null,null,null,null,null,null,null,null,null,null,null,null,null,null,"","",""]
[null,null,null,null,null,null,null,null,null,null,null,null,null,null,null,null,null,null,"","",""]
[null,null,null,null,null,null,null,null,null,null,null,null,null,null,null,null,null,null,"","",""]
[null,null,null,null,null,null,null,null,null,null,null,null,null,null,null,null,null,null,"","",""]

{"sheet":"Team Information","index":3,"n_rows":30,"n_cols":24,"rows_kept":30,"cut":false,"hidden":false,"merged":[[12,14,13,17],[18,6,40,13],[5,0,5,1]]}
[]
[null,"PennDOT EVC-RAA Proposal Excel File - Step 6: Team Information"]
[]
[null,1,"Team Qualifications and Project Approach [15pts]"]
[]
[1.1000000000000001,null,"[15pts] Team Qualifications and Experience"]
[]
[null,null,"Role Title","Name of Organization","Relevant Experience",null,"Please Read"]
[null,null,"Other","N/A",null,null,null,null,null,null,null,null,null,null,{"$f":"_xlfn._xlws.SORT(_xlfn._xlws.FILTER(D9:D1000, (C9:C1000=\"Site Host\")*(D9:D1000<>\"\"), ))","v":"N/A"},{"$f":"_xlfn._xlws.SORT(_xlfn._xlws.FILTER(D9:D1000, (C9:C1000=\"Project Owner\")*(D9:D1000<>\"\"), ))","v":"N/A"},{"$f":"_xlfn._xlws.SORT(_xlfn._xlws.FILTER(D9:D1000, (C9:C1000=\"EVSE Supplier\")*(D9:D1000<>\"\"), ))","v":"N/A"},{"$f":"_xlfn._xlws.SORT(_xlfn._xlws.FILTER(D9:D1000, (C9:C1000=\"Electrical Sub-Contractor\")*(D9:D1000<>\"\"), ))","v":"N/A"},{"$f":"_xlfn._xlws.SORT(_xlfn._xlws.FILTER(D9:D1000, (C9:C1000=\"General Sub-Contractor\")*(D9:D1000<>\"\"), ))","v":"N/A"},{"$f":"_xlfn._xlws.SORT(_xlfn._xlws.FILTER(D9:D1000, (C9:C1000=\"Operator\")*(D9:D1000<>\"\"), ))","v":"N/A"},{"$f":"_xlfn._xlws.SORT(_xlfn._xlws.FILTER(D9:D1000, (C9:C1000=\"Maintainer\")*(D9:D1000<>\"\"), ))","v":"N/A"},{"$f":"_xlfn._xlws.SORT(_xlfn._xlws.FILTER(D9:D1000, (C9:C1000=\"Utility Provider (If Applicable)\")*(D9:D1000<>\"\"), ))","v":"N/A"},{"$f":"_xlfn._xlws.SORT(_xlfn._xlws.FILTER(D9:D1000, (C9:C1000=\"Charging Network Provider\")*(D9:D1000<>\"\"), ))","v":"N/A"},{"$f":"_xlfn._xlws.SORT(_xlfn._xlws.FILTER(D9:D1000, (C9:C1000=\"Other\")*(D9:D1000<>\"\"), ))","v":"N/A"}]
[null,null,"Site Host","N/A"]
[null,null,"Project Owner","N/A"]
[null,null,"EVSE Supplier","N/A"]
[null,null,"Electrical Sub-Contractor","N/A"]
[null,null,"General Sub-Contractor","N/A"]
[null,null,"Operator","N/A"]
[null,null,"Maintainer","N/A"]
[null,null,"Utility Provider (If Applicable)","N/A"]
[null,null,"Charging Network Provider","N/A"]
[null,null,"Site Host",null,null,null,"In this tab, provide a list of all known team member organizations and their relevant experience for each Project site. When one or more Project team member organizations are not yet identified, add the role title, name them as \"Unknown\" and describe the method of selecting such team member organizations(s) and any minimum requirements/expectations in \"Relevant Experience\".\n\n* All roles and names you fill out here will populate the drop downs of your Project tabs.\n\n* If a team member organization has multiple roles, please enter their relevant experience for each role\n\nExample: If a team member organization acts as both a site host and the project owner, enter them in two rows with \"Site Host\" and \"Project Owner\" next to their name.\n\nExample: If you have ten different Site Hosts, add in nine additional Site Host lines at the bottom of the table. If you have two different Operators between these Projects, add in only two Operator lines.\n\n* You do not need to fill in every row in the table. For rows after row 28, enter team member organizations if and only if you have additional team member organizations.\n\n* You do not need to fill in 'Relevant Experience' for a Utility Provider or Site Host."]
[null,null,"Project Owner"]
[null,null,"EVSE Supplier"]
[null,null,"Electrical Sub-Contractor"]
[null,null,"General Sub-Contractor"]
[null,null,"Operator"]
[null,null,"Maintainer"]
[null,null,"Utility Provider (If Applicable)"]
[null,null,"Charging Network Provider"]
[null,null,"Other"]
[null,null,"Other"]
[null,null,"Other"]

{"sheet":"Project Template","index":4,"n_rows":153,"n_cols":11,"rows_kept":153,"cut":false,"hidden":false,"merged":[[150,2,150,10],[152,2,152,10],[123,2,123,10],[91,2,91,10],[93,2,93,10],[113,2,113,10],[95,2,95,10],[97,2,97,10],[98,2,98,10],[100,2,100,10],[101,2,101,10],[103,2,103,10],[126,2,126,10],[128,2,128,10],[130,2,130,3],[114,2,114,10],[125,2,125,10],[104,2,104,10],[106,2,106,10],[107,2,107,10],[87,2,87,10],[111,2,111,10],[116,2,116,10],[117,2,117,10],[119,2,119,10],[120,2,120,10],[122,2,122,10],[109,2,109,10],[66,2,66,10],[80,2,80,10],[81,2,81,10],[82,2,82,10],[7,2,7,10],[62,2,62,10],[63,2,63,10],[48,2,48,10],[50,2,50,10],[71,2,71,10],[73,2,73,3],[70,2,70,10],[38,2,38,8],[27,2,27,10],[29,5,29,7],[30,5,30,7],[29,2,32,2],[57,2,57,10],[59,2,59,10],[60,2,60,10],[65,2,65,10],[51,2,51,10],[53,2,53,10],[54,2,54,10],[56,2,56,10],[47,2,47,10],[40,2,40,10],[41,2,41,10],[43,2,43,10],[44,2,44,10],[46,2,46,10],[25,2,25,10],[8,2,8,10],[20,4,20,10],[21,4,21,10],[22,4,22,10],[23,4,23,10],[15,4,15,10],[16,4,16,10],[17,4,17,10],[18,4,18,10],[19,4,19,10],[9,2,9,10],[11,4,11,10],[13,4,13,10],[12,4,12,10],[14,4,14,10],[144,2,144,10],[146,2,146,10],[148,2,148,10],[132,2,132,10],[142,2,142,10],[134,2,134,6],[136,2,136,6],[138,2,140,6],[68,2,68,10],[84,2,85,8],[88,2,88,10],[90,2,90,10],[74,2,74,3],[77,2,77,10],[78,2,78,10],[79,2,79,10],[75,2,75,10],[76,2,76,10],[72,2,72,10]]}
[]
[null,"PennDOT EVC-RAA Proposal Excel File - Step 7: Site Information"]
[]
[null,1,"Team Qualifications and Project Approach [15pts]"]
[]
[null,1.1000000000000001,"[15pts] Team Qualifications and Experience"]
[]
[null,null,"A. Provide a list of all known team member organizations expected to be part of the Project and their relevant experience. Prospective Contractors may follow their typical procurement processes when selecting team member organizations, as long as they follow the processes/requirements outlined in the Federal Rule. When one or more Project team member organizations are not yet identified, describe the method of selecting such team member organization(s) and any minimum requirements/expectations."]
[]
[null,null,"* The relevant experience will auto-populate. The 'Name of Organization' box will have a drop down for each of the names you entered in \"Team Information.\""]
[]
[null,null,"Role Title","Name of Organization","Relevant Experience"]
[null,null,"Site Host",null,"Not Applicable"]
[null,null,"Project Owner",null,{"$f":"IFERROR(IF(OR(INDEX('Team Information'!$E$9:$E$1000,MATCH(1,('Team Information'!$C$9:$C$1000=C14)*('Team Information'!$D$9:$D$1000=D14),0))=0, ISERROR(INDEX('Team Information'!$E$9:$E$1000,MATCH(1,('Team Information'!$C$9:$C$1000=C14)*('Team Information'!$D$9:$D$1000=D14),0)))), \"-\", INDEX('Team Information'!$E$9:$E$1000,MATCH(1,('Team Information'!$C$9:$C$1000=C14)*('Team Information'!$D$9:$D$1000=D14),0))), \"-\")","v":"-"}]
[null,null,"EVSE Supplier",null,{"$f":"IFERROR(IF(OR(INDEX('Team Information'!$E$9:$E$1000,MATCH(1,('Team Information'!$C$9:$C$1000=C15)*('Team Information'!$D$9:$D$1000=D15),0))=0, ISERROR(INDEX('Team Information'!$E$9:$E$1000,MATCH(1,('Team Information'!$C$9:$C$1000=C15)*('Team Information'!$D$9:$D$1000=D15),0)))), \"-\", INDEX('Team Information'!$E$9:$E$1000,MATCH(1,('Team Information'!$C$9:$C$1000=C15)*('Team Information'!$D$9:$D$1000=D15),0))), \"-\")","v":"-"}]
[null,null,"Electrical Sub-Contractor",null,{"$f":"IFERROR(IF(OR(INDEX('Team Information'!$E$9:$E$1000,MATCH(1,('Team Information'!$C$9:$C$1000=C16)*('Team Information'!$D$9:$D$1000=D16),0))=0, ISERROR(INDEX('Team Information'!$E$9:$E$1000,MATCH(1,('Team Information'!$C$9:$C$1000=C16)*('Team Information'!$D$9:$D$1000=D16),0)))), \"-\", INDEX('Team Information'!$E$9:$E$1000,MATCH(1,('Team Information'!$C$9:$C$1000=C16)*('Team Information'!$D$9:$D$1000=D16),0))), \"-\")","v":"-"}]
[null,null,"General Sub-Contractor",null,{"$f":"IFERROR(IF(OR(INDEX('Team Information'!$E$9:$E$1000,MATCH(1,('Team Information'!$C$9:$C$1000=C17)*('Team Information'!$D$9:$D$1000=D17),0))=0, ISERROR(INDEX('Team Information'!$E$9:$E$1000,MATCH(1,('Team Information'!$C$9:$C$1000=C17)*('Team Information'!$D$9:$D$1000=D17),0)))), \"-\", INDEX('Team Information'!$E$9:$E$1000,MATCH(1,('Team Information'!$C$9:$C$1000=C17)*('Team Information'!$D$9:$D$1000=D17),0))), \"-\")","v":"-"}]
[null,null,"Operator",null,{"$f":"IFERROR(IF(OR(INDEX('Team Information'!$E$9:$E$1000,MATCH(1,('Team Information'!$C$9:$C$1000=C18)*('Team Information'!$D$9:$D$1000=D18),0))=0, ISERROR(INDEX('Team Information'!$E$9:$E$1000,MATCH(1,('Team Information'!$C$9:$C$1000=C18)*('Team Information'!$D$9:$D$1000=D18),0)))), \"-\", INDEX('Team Information'!$E$9:$E$1000,MATCH(1,('Team Information'!$C$9:$C$1000=C18)*('Team Information'!$D$9:$D$1000=D18),0))), \"-\")","v":"-"}]
[null,null,"Maintainer",null,{"$f":"IFERROR(IF(OR(INDEX('Team Information'!$E$9:$E$1000,MATCH(1,('Team Information'!$C$9:$C$1000=C19)*('Team Information'!$D$9:$D$1000=D19),0))=0, ISERROR(INDEX('Team Information'!$E$9:$E$1000,MATCH(1,('Team Information'!$C$9:$C$1000=C19)*('Team Information'!$D$9:$D$1000=D19),0)))), \"-\", INDEX('Team Information'!$E$9:$E$1000,MATCH(1,('Team Information'!$C$9:$C$1000=C19)*('Team Information'!$D$9:$D$1000=D19),0))), \"-\")","v":"-"}]
[null,null,"Utility Provider (If Applicable)",null,"Not Applicable"]
[null,null,"Charging Network Provider",null,{"$f":"IFERROR(IF(OR(INDEX('Team Information'!$E$9:$E$1000,MATCH(1,('Team Information'!$C$9:$C$1000=C21)*('Team Information'!$D$9:$D$1000=D21),0))=0, ISERROR(INDEX('Team Information'!$E$9:$E$1000,MATCH(1,('Team Information'!$C$9:$C$1000=C21)*('Team Information'!$D$9:$D$1000=D21),0)))), \"-\", INDEX('Team Information'!$E$9:$E$1000,MATCH(1,('Team Information'!$C$9:$C$1000=C21)*('Team Information'!$D$9:$D$1000=D21),0))), \"-\")","v":"-"}]
[null,null,"Other",null,{"$f":"IFERROR(IF(OR(INDEX('Team Information'!$E$9:$E$1000,MATCH(1,('Team Information'!$C$9:$C$1000=C22)*('Team Information'!$D$9:$D$1000=D22),0))=0, ISERROR(INDEX('Team Information'!$E$9:$E$1000,MATCH(1,('Team Information'!$C$9:$C$1000=C22)*('Team Information'!$D$9:$D$1000=D22),0)))), \"-\", INDEX('Team Information'!$E$9:$E$1000,MATCH(1,('Team Information'!$C$9:$C$1000=C22)*('Team Information'!$D$9:$D$1000=D22),0))), \"-\")","v":"-"}]
[null,null,"Other",null,{"$f":"IFERROR(IF(OR(INDEX('Team Information'!$E$9:$E$1000,MATCH(1,('Team Information'!$C$9:$C$1000=C23)*('Team Information'!$D$9:$D$1000=D23),0))=0, ISERROR(INDEX('Team Information'!$E$9:$E$1000,MATCH(1,('Team Information'!$C$9:$C$1000=C23)*('Team Information'!$D$9:$D$1000=D23),0)))), \"-\", INDEX('Team Information'!$E$9:$E$1000,MATCH(1,('Team Information'!$C$9:$C$1000=C23)*('Team Information'!$D$9:$D$1000=D23),0))), \"-\")","v":"-"}]
[null,null,"Other",null,{"$f":"IFERROR(IF(OR(INDEX('Team Information'!$E$9:$E$1000,MATCH(1,('Team Information'!$C$9:$C$1000=C24)*('Team Information'!$D$9:$D$1000=D24),0))=0, ISERROR(INDEX('Team Information'!$E$9:$E$1000,MATCH(1,('Team Information'!$C$9:$C$1000=C24)*('Team Information'!$D$9:$D$1000=D24),0)))), \"-\", INDEX('Team Information'!$E$9:$E$1000,MATCH(1,('Team Information'!$C$9:$C$1000=C24)*('Team Information'!$D$9:$D$1000=D24),0))), \"-\")","v":"-"}]
[]
[null,null,"B. List up to 5 prior EV installations completed by a member or members of the Prospective Contractor’s team. Please limit this list to projects installed over the last five years that are similar in power level and port count to the proposed work at the Project sites. List Pennsylvania installations first, and then other installations in the United States. [eGrants - Embedded Table]"]
[]
[null,2,"Equity, Availability, and Reliability [25pts]"]
[]
[null,2.1,"[5pts] List the AFDC Station ID associated with the proposed Project",null,"AFDC Station ID"]
[null,null,null,null,"Project Address",{"$f":"(VLOOKUP(F30,'Eligible AFDC Station IDs'!A2:O175,4,FALSE))","v":{"$error":"#N/A"}}]
[null,null,null,null,null,{"$f":"(VLOOKUP(F30,'Eligible AFDC Station IDs'!A2:O175,5,FALSE))","v":{"$error":"#N/A"}},{"$f":"(VLOOKUP(F30,'Eligible AFDC Station IDs'!A2:O175,6,FALSE))","v":{"$error":"#N/A"}},{"$f":"(VLOOKUP(F30,'Eligible AFDC Station IDs'!A2:O175,7,FALSE))","v":{"$error":"#N/A"}}]
[]
[null,null,null,null,"DAC Score",{"$f":"VLOOKUP(F30, 'Eligible AFDC Station IDs'!A2:L175, 11, FALSE)","v":{"$error":"#N/A"}}]
[]
[null,null,"Precise Location of proposed Charging Station on Project site (min. 5 decimals):",null,null,null,null,null,null,"Latitude"]
[null,null,null,null,null,null,null,null,null,"Longitude"]
[]
[null,2.2000000000000002,"[20pts] Charging Availability and Reliability"]
[]
[null,null,"A. What factors or background led to the charger(s) at this Project site being listed as Broken or Non-Operational on the Alternative Fuels Data Center list on October 11, 2023? Describe the current state/status of the listed Broken or Non-Operational charger(s) at this Project site."]
[]
[]
[null,null,"B. Describe the expected scope to bring the Project into compliance with the Federal Rule, including port count, power level(s), and Uptime. Include a description of the current electric power source and capacity, and any planned changes or increases in electric power source or capacity."]
[]
[]
[null,null,"C. Describe the Project’s anticipated impact on EV charging availability and reliability including:"]
[null,null,"a. The prevalence of nearby charging stations and the extent to which they satisfy local charging demand"]
[]
[]
[null,null,"b. The likely charging use case(s) (destination, community, multi-unit dwelling, corridor, etc.) of the Charging Station(s) when the Project is completed"]
[]
[]
[null,null,"c. The ADA accessibility of the completed Charging Station(s) as compared to the current accessibility (if any change)"]
[]
[]
[null,null,"d. The Uptime of the completed Charging Station(s) as compared to the current Uptime, and the strategies that will ensure the improved Uptime is maintained"]
[]
[]
[null,null,"e. The total charging power availability (port count and power per plug) of the completed Charging Station(s) as compared to the current power availability "]
[]
[]
[null,null,"f. The hours per day/week the completed Charging Station(s) will be available for public use as compared to the current hours (if any change)"]
[]
[]
[null,null,"g. Any additional information on improved EV charging availability and reliability that the Prospective Contractor would like to convey"]
[]
[]
[null,3,"Project Information [17pts]"]
[]
[null,3.1,"[5pts] Provide a site schematic for each Project using a diagram, map, or schematic (final engineering plans are not required). Show locations of the following items and any additional items useful for understanding the site layout. Proposals for multiple Projects may upload a single file containing the site schematics for all Projects, or a separate file for each Project. [eGrants - File Upload]"]
[null,null,"a. Existing and proposed designated EV charging parking stall(s)"]
[null,null,"b. Existing charger(s) identified as non-operational on October 11, 2023"]
[null,null,"c. Existing and proposed EVSE equipment"]
[null,null,"d. Existing and proposed point of sale equipment"]
[null,null,"e. Existing and proposed on-premises locational signage for the Charging Station(s), if any"]
[null,null,"f. Existing and proposed electric point of service to the Project(s)"]
[null,null,"g. Existing and proposed electric utility pole and/or service equipment at the Project site(s), if any"]
[null,null,"h. Americans with Disabilities Act (ADA) compliant parking stalls (minimum of 2 per Project)"]
[null,null,"i. ADA path of travel from charging stall to entrance of Site Host facility, if any"]
[null,null,"j. Identify pull-through charging stalls, if any"]
[null,null,"k. Identify proposed medium- and/or heavy- duty vehicle charging, if any"]
[null,null,"l. Identify the optimal vehicular path of travel from the Project site entrance to the Charging Station when operational"]
[]
[null,3.2,"[4pts] How many hours per day will there be public access to an ADA accessible restroom within a reasonable walking distance (i.e., about 500 feet) from the Charging Station(s) via an ADA accessible path of travel?"]
[null,null,null,null,null,null,null,null,null,null,"Hours"]
[]
[null,3.3,"[4pts] Identify any customer safety enhancements or features associated with or located near the Charging Station(s) (e.g., proximity to on-site facility, high foot traffic, lighting, security cameras, emergency call system, fire extinguisher, Automated External Defibrillator (AED), etc.)."]
[]
[]
[null,3.4,"[4pts] Identify any other amenities or features associated with or located near the Charging Station(s) (e.g., prepared food, indoor climate-controlled space, overhead canopy, recreation facilities including parks and public green spaces, shopping, free wi-fi, park and ride, public transit, etc.). Include the hours per day that each amenity or feature is available, if hours are limited. Also include whether the amenity or feature is accessible via an ADA path of travel from the Charging Station(s), if applicable."]
[]
[]
[null,4,"Site Readiness [23pts]"]
[]
[null,4.0999999999999996,"[15pts] Project Timeline"]
[]
[null,null,"A. Is a new or upgraded electric utility service included in the project scope? If the Project includes a new or upgraded electric utility service, please describe the power level of the current and the planned utility electric service, and the anticipated timeline to implement the new connection. "]
[]
[]
[null,null,"B. If the project scope includes the purchase of new chargers, when do you anticipate receiving delivery of the Buy America compliant chargers needed to complete the project? Please provide details to validate the timeline."]
[]
[]
[null,null,"C. Describe specific strategies your team will use to ensure the draft Site Host Agreement is provided, and the Agreement with PennDOT is signed by your authorized official, within 90 days after Conditional Award."]
[]
[]
[null,null,"D. Describe all additional project details and/or strategies you will employ to ensure project implementation is completed expeditiously."]
[]
[]
[null,4.2,"[4pts] Upload Site Host Letter(s) of Commitment from the Site Host(s) to implement each Project if selected for funding. If the Prospective Contractor is also the Site Host, then note this here. Note that Projects lacking a Site Host Letter of Commitment may be deemed ineligible. [eGrants - File Upload]"]
[]
[null,4.3,"[4pts] NEPA Coordination, Preparation, and Risks"]
[]
[null,null,"A. Will all EVC-RAA funded work occur within an existing parking lot, paved area, or maintained (periodically mowed) lawn? If no, please clarify for the Project."]
[]
[]
[null,null,"B. Are any Project partners, including the Site Host, aware of any site contamination/remediation or cleanup activity associated with hazardous materials? If yes, please clarify for the Project."]
[]
[]
[null,null,"C. Will non-EVC-RAA construction or reconstruction of the Site Host facility occur prior to or around the same time as the NEVI Project? If so, for the Project please provide a brief description of the scope of the non-EVC-RAA construction activities, the current status of the non-EVC-RAA construction or reconstruction project, and list any permits obtained for the construction."]
[]
[]
[null,null,"D. Will all access to the EVC-RAA Charging Station(s) be provided through existing pathways, paved surfaces, or sidewalks? If not, describe the additional accommodations for access that are required to be constructed as part of the installation of the EVC-RAA Charging Station."]
[]
[]
[null,null,"E. Are the proposed Charging Station(s) located within a designated FEMA 100-year flood zone? If so, identify the risk associated with locating the Charging Station(s) in a flood zone and plans for mitigating this risk. Refer to the site https://msc.fema.gov/portal/home for the FEMA flood map."]
[]
[]
[null,5,"Project Costs [20pts]"]
[]
[null,5.0999999999999996,"[16pts] Funding Requests"]
[]
[null,null,"A. Provide a cost breakdown for each Project that details where costs will be incurred on the Project(s). Do this in the Budget tab that includes the following cost categories: pre-construction (including permitting, design, and other), construction (including site work, electrical, installation/commissioning, and other), equipment (including chargers, supporting equipment, and other), utility, networking contract, warranty/maintenance contract, workforce training, and EV charging safety training. Note that equipment must comply with Phase 2 of the federal Buy America Waiver (see Section III – Program Requirements, M. Buy America Provision for more information)."]
[]
[null,null,"B. What is the overall eligible cost for this Project as proposed?",null,null,null,null,null,null,"$",{"$f":"VLOOKUP(F30, Budget!B9:V190, 20, FALSE)","v":{"$error":"#N/A"}}]
[]
[null,null,"C. What is the overall contract amount being requested from PennDOT for this Project?",null,null,null,null,null,null,"$",{"$f":"VLOOKUP(F30, Budget!B9:V190, 18, FALSE)","v":{"$error":"#N/A"}}]
[]
[null,null,"D. What is the expected total continuous charging capacity of each Project as proposed? Note that for scoring calculation purposes, PennDOT will consider no more than 175 kW per DCFC port and no more than 9.6 kW per Level 2 port.",null,null,null,null,null,null,null,"kW"]
[null,null,null,null,null,null,null,null,null,{"$f":"IFERROR(K135/J139, 0)","v":0},"$ / kW"]
[]
[]
[null,6,"Additional Information [0pts]"]
[]
[null,6.1,"Please download, complete, and upload the Federal Lobbying Certification Form. Use the link provided in the eGrants Public Portal Interface. [eGrants - File Upload]"]
[]
[null,6.2,"Please download, complete, and upload the Disclosure of Lobbying Activities Form. Use the link provided in the eGrants Public Portal Interface. [eGrants - File Upload]"]
[]
[null,6.3,"Please download, complete, and upload the FFATA Federal Funding Accountability Form for each Project. Note, the FFATA form is optional as part of the Application; however, it will be required prior to Agreement execution for each awarded Project. Use the link provided in the eGrants Public Portal Interface. [eGrants - File Upload]"]
[]
[null,6.4,"Please download, complete, and upload the Worker Protection Form. Use the link provided in the eGrants Public Portal Interface. [eGrants - File Upload]"]
[]
[null,6.5,"Please upload the Written Statement on Proprietary Information and Confidentiality, or a statement that no information in the Proposal is claimed as Proprietary Information or confidential. The Prospective Contractor must provide a redacted copy of each file that contains confidential or Proprietary Information, or opt out of redacting. [eGrants - File Upload]"]